{"text_format":"1","workbook":"xlsx","n_sheets":4,"sheets":["FORMULARZ","WYNIK1","Arkusz3","WYNIK"],"not_rendered":{"charts":0,"images":1,"macros":1,"external_links":1,"defined_names":35,"comments":0,"pivot_tables":0},"unopened":[],"bounds":{"document_bytes":16777216,"sheet_cells":100000,"rows_first":2000,"rows_last":500,"rows_between":2000,"halvings":0,"cell_chars":16384,"cell_head_chars":4096},"cells_cut":0,"cells_raw":0,"read":"whole","date_system":"1900"}

{"sheet":"FORMULARZ","index":0,"n_rows":78,"n_cols":18,"rows_kept":78,"cut":false,"hidden":false,"merged":[[31,10,32,10],[31,11,32,11],[12,0,13,15],[16,1,17,14],[21,1,24,14],[27,1,27,3],[18,1,19,14],[31,12,32,12],[31,13,32,13],[31,14,32,14],[28,1,32,3],[28,4,29,11],[28,12,28,14],[29,12,29,13],[31,4,32,4],[31,5,32,5],[35,15,39,15],[35,12,41,12],[35,1,35,3],[33,1,33,3],[34,1,34,3],[31,6,32,7],[42,7,50,7],[42,8,50,9],[36,1,36,3],[37,1,37,3],[38,1,38,3],[39,1,39,3],[40,1,40,3],[42,5,50,5],[42,6,50,6],[41,1,41,3],[65,1,65,3],[68,1,68,3],[61,1,61,3],[62,1,62,3],[63,1,63,3],[64,1,64,3],[42,0,50,0],[42,1,50,3],[42,4,50,4],[55,1,55,3],[60,1,60,3],[58,1,58,3],[52,1,52,3],[53,1,53,3],[54,1,54,3],[76,6,76,7],[76,8,76,10],[67,1,67,3],[52,15,59,15],[42,10,50,10],[42,11,50,11],[42,12,50,12],[42,13,50,13],[42,14,50,14],[66,1,66,3],[61,15,68,15],[56,1,56,3],[57,1,57,3],[59,1,59,3],[51,1,51,3],[42,15,43,15],[73,12,77,15],[44,15,50,15],[72,1,72,10],[71,1,71,10],[74,4,75,5],[74,6,75,7],[73,1,75,1],[73,2,75,3],[73,4,73,7],[73,8,75,10],[77,2,77,3],[77,4,77,5],[77,6,77,7],[77,8,77,10],[76,2,76,3],[76,4,76,5]]}
[]
[]
[]
[]
[null,null,null,null,null,null,null,null,null,null,null,null,null,null,null,null,null,0]
[]
[]
[]
[]
[]
[]
[]
["Wprowadzenie:\nProgram umożliwia naliczenie opłaty produktowej za rok 2021. W celu naliczenia opłaty należy wypełnić poniższy formularz.\nKomórki z opisem oznaczonym gwiazdką *) zawierają objaśnienia wyświetlające się po wybraniu komórki.\nWyliczona wysokość opłaty znajduje się w zakładce \"WYNIK\".\n\nUWAGA: \nProgram nie uwzględnia naliczenia opłaty w przypadku zorganizowanej przez podmiot sieci selektywnego zbierania (tj. kiedy wymagany poziom odzysku i recyklingu jest równy 100%).\nProgram nie uwzględnia naliczenia opłaty w przypadku przystąpienia podmiotu do porozumienia organizacjI samorządu gospodarczego z marszałkiem województwa w zakresie utworzenia \ni utrzymania systemu zbierania, transportu, odzysku lub unieszkodliwiania odpadów opakowaniowych powstałych z opakowań wielomateriałowych albo z opakowań po środkach niebezpiecznych.\nProgram pomaga w naliczeniu opłaty, ale nie zwalnia z obowiązku sporządzenia sprawozdania w Bazie danych o produktach \ni opakowaniach oraz o gospodarce odpadami (BDO)."]
[]
[]
[null,null,null,null,null,null,"UWAGA! Masę należy uzupełnić w tonach [Mg] !!!"]
[null,"Tabela do wyliczenia opłaty produktowej"]
[]
[null,{"$f":"IF(#REF!=2,\"Pomiń poniższą tabelę\",IF(#REF!=1,\"Wypełnij poniższą tabelę\",IF(#REF!=3,\"Najpierw wypełnij dane powyżej\",\"\")))","v":{"$error":"#REF!"}}]
[]
[null,{"$f":"IF(OR(A22=TRUE, A23=TRUE, A24=TRUE, A26=TRUE),\"\",\"Zaznacz jakich opakowań dotyczy sprawozdanie\")","v":""}]
[true,"OBJAŚNIENIA:\nW celu naliczenia opłaty niezbędne jest wypełnienie kolumn 2 i 3.\nJeżeli podmiot posiada dokumenty potwierdzające odzysk/recyckling (DPO/DPR) należy uzupełnić kolumny 10 i 11.\n"]
[true]
[true]
[false]
[true]
[false]
[0,1,null,null,2,3,4,5,6,7,8,9,10,11,11]
[null,null,null,null,"Masa wprowadzonych do obrotu opakowań w tonach [Mg] :"]
[null,null,null,null,null,null,null,null,null,null,null,null,"ODZYSKOWI",null,"RECYKLINGOWI"]
[null,null,null,null,"ogółem w 2020 r.","ogółem w 2021 r.",null,"stanowiąca podstawę do obliczeń",null,null,"podlegających obowiązkowi odzysku","podlegających obowiązkowi recyklingu",{"$f":"\"poddanych w  2021 r.\"","v":"poddanych w  2021 r."},"w tym pochodzących z gospodarstw domowych",{"$f":"\"poddanych w  2021 r.\"","v":"poddanych w  2021 r."}]
[null,null,null,null,{"$f":"IF(SUM(E35,E43,E52,E61)=0,\"wypełnij kolumnę poniżej\",\"\")","v":"wypełnij kolumnę poniżej"},{"$f":"IF(SUM(F35,F43,F52,F61)=0,\"wypełnij kolumnę poniżej\",\"\")","v":"wypełnij kolumnę poniżej"},null,null,{"$f":"IF(OR(I36>H36,I37>H37,I38>H38,I39>H39,I40>H40,I41>H41),\"błędne wartości\",\"\")","v":""},null,"kolumna wypełniana automatyczne","kolumna wypełniana automatyczne",{"$f":"IF(SUM(M35,M43,M52,M61)=0,\"wypełnij poniższą kolumnę\",\"\")","v":"wypełnij poniższą kolumnę"},{"$f":"IF(SUM(N35,N43,N52,N61)=0,\"wypełnij poniższa kolumnę\",\"\")","v":"wypełnij poniższa kolumnę"},{"$f":"IF(SUM(O35,O43,O52,O61)=0,\"wypełnij poniższa kolumnę\",\"\")","v":"wypełnij poniższa kolumnę"}]
["L.p."]
[0,"opakowania razem",null,null,{"$f":"IF(SUM(E35,E43,E52,E61)=0,\"\",SUM(E35,E43,E52,E61))","v":""},{"$f":"IF(SUM(F35,F43,F52,F61)=0,\"\",SUM(F35,F43,F52,F61))","v":""},null,{"$f":"IF(SUM(H35,H43,H52,H61)=0,\"\",SUM(H35,H43,H52,H61))","v":""},null,null,{"$f":"H34","v":""},{"$f":"H34","v":""},{"$f":"IF(SUM(M35,M43,M52,M61)=0,\"\",SUM(M35,M43,M52,M61))","v":""},"",""]
[1,"opakowania jednorodne \nSUMA",null,null,{"$f":"IF(SUM(E36:E42)=0,\"\",SUM(E36:E42))","v":""},{"$f":"IF(SUM(F36:F42)=0,\"\",SUM(F36:F42))","v":""},null,{"$f":"IF(SUM(H36:H42)=0,\"\",SUM(H36:H42))","v":""},null,null,{"$f":"H35","v":""},{"$f":"H35","v":""},{"$f":"IF(OR(SUM(M36:M42)=0,SUM(M36:M42)=\"\"),\"\",SUM(M36:M42))","v":""},{"$f":"IF(OR(SUM(N36:N42)=0,SUM(N36:N42)=\"\"),\"\",SUM(N36:N42))","v":""},"",{"$f":"IF(OR(M35<O35),\"Błąd: odzysk nie może być mniejszy niż recykling\",\"\")","v":""}]
["1.1","opakowania z tworzyw sztucznych",null,null,null,null,null,{"$f":"IF(F36=0,\"\",IF(E36=0,F36,E36))","v":""},null,null,"","",null,null,null,"Kolumny 10 i 11 należy wypełnić tylko w przypadku posiadania dokumentów potwierdzających odzysk/recykling (DPO/DPR/EDPO/EDPR) "]
["1.2","opakowania z aluminium",null,null,null,null,null,{"$f":"IF(F37=0,\"\",IF(E37=0,F37,E37))","v":""},null,null,"",""]
["1.3","opakowania ze stali, w tym z blachy stalowej oraz pozostałych metali",null,null,null,null,null,{"$f":"IF(F38=0,\"\",IF(E38=0,F38,E38))","v":""},null,null,"",""]
["1.4","opakowania z papieru i tektury",null,null,null,null,null,"",null,null,"",""]
["1.5","opakowania ze szkła gospodarczego, poza ampułkami",null,null,null,null,null,"",null,null,"",""]
["1.6","opakowania z drewna",null,null,null,null,null,"",null,null,"",""]
["1.7","pozostałe opakowania",null,null,null,null,null,"",null,null,"",""]
[2,"opakowania wielomateriałowe \n",null,null,null,null,null,{"$f":"IF(F43=0,\"\",IF(E43=0,F43,E43))","v":""},null,null,{"$f":"H43","v":""},{"$f":"H43","v":""},null,null,null,{"$f":"IF(OR(M43<O43),\"Błąd: odzysk nie może być mniejszy niż recykling\",\"\")","v":""}]
[]
[null,null,null,null,null,null,null,null,null,null,null,null,null,null,null,"Kolumny 10 i 11 należy wypełnić tylko w przypadku posiadania dokumentów potwierdzających odzysk/recykling (DPO/DPR/EDPO/EDPR) "]
[]
[]
[]
[]
[]
[]
[3,"opakowania po środkach niebezpiecznych innych niż środki ochrony roślin                                                                                                                                                    SUMA ",null,null,{"$f":"IF(SUM(E53:E60)=0,\"\",SUM(E53:E60))","v":""},{"$f":"IF(SUM(F53:F60)=0,\"\",SUM(F53:F60))","v":""},null,{"$f":"IF(SUM($H$53:$H$60)=0,\"\",SUM($H$53:$H$60))","v":""},null,null,{"$f":"H52","v":""},{"$f":"H52","v":""},{"$f":"IF(OR(SUM(M53:M60)=0,SUM(M53:M60)=\"\"),\"\",SUM(M53:M60))","v":""},{"$f":"IF(OR(SUM(N53:N60)=0,SUM(N53:N60)=\"\"),\"\",SUM(N53:N60))","v":""},""]
["3.1","opakowania z tworzyw sztucznych",null,null,null,null,null,{"$f":"IF(F53=0,\"\",IF(E53=0,F53,E53))","v":""},null,null,{"$f":"H53","v":""},{"$f":"H53","v":""},null,null,null,"Kolumny 10 i 11 należy wypełnić tylko w przypadku posiadania dokumentów potwierdzających odzysk/recykling (DPO/DPR/EDPO/EDPR) "]
["3.2","opakowania z aluminium",null,null,null,null,null,{"$f":"IF(F54=0,\"\",IF(E54=0,F54,E54))","v":""},null,null,{"$f":"H54","v":""},{"$f":"H54","v":""}]
["3.3","opakowania ze stali, w tym z blachy stalowej oraz pozostałych metali",null,null,null,null,null,"",null,null,"",{"$f":"H55","v":""}]
["3.4","opakowania z papieru i tektury",null,null,null,null,null,"",null,null,"",""]
["3.5","opakowania ze szkła",null,null,null,null,null,"",null,null,"",""]
["3.6","opakowania z drewna",null,null,null,null,null,"",null,null,"",""]
["3.7","opakowania wielomateriałowe",null,null,null,null,null,"",null,null,"",""]
["3.8","pozostałe opakowania",null,null,null,null,null,"",null,null,"",""]
[4,"opakowania po środkach niebezpiecznych będących środkami ochrony roślin                                                                                                                                                         SUMA",null,null,{"$f":"IF(SUM(E62:E69)=0,\"\",SUM(E62:E69))","v":""},{"$f":"IF(SUM(F62:F69)=0,\"\",SUM(F62:F69))","v":""},null,{"$f":"IF($F$61=0,\"\",IF($E$61=0,$F$61,$E$61))","v":""},null,null,{"$f":"H61","v":""},{"$f":"H61","v":""},{"$f":"IF(OR(SUM(M62:M69)=0,SUM(M62:M69)=\"\"),\"\",SUM(M62:M69))","v":""},{"$f":"IF(OR(SUM(N62:N69)=0,SUM(N62:N69)=\"\"),\"\",SUM(N62:N69))","v":""},"",{"$f":"IF(OR(M61<O61),\"Błąd: odzysk nie może być mniejszy niż recykling\",\"\")","v":""}]
["4.1","opakowania z tworzyw sztucznych",null,null,null,null,null,{"$f":"IF(F62=0,\"\",IF(E62=0,F62,E62))","v":""},null,null,{"$f":"H62","v":""},{"$f":"H62","v":""},null,null,null,"Kolumny 10 i 11 należy wypełnić tylko w przypadku posiadania dokumentów potwierdzających odzysk/recykling (DPO/DPR/EDPO/EDPR) "]
["4.2","opakowania z aluminium",null,null,null,null,null,{"$f":"IF(F63=0,\"\",IF(E63=0,F63,E63))","v":""},null,null,{"$f":"H63","v":""},{"$f":"H63","v":""}]
["4.3","opakowania ze stali, w tym z blachy stalowej oraz pozostałych metali",null,null,null,null,null,"",null,null,"",""]
["4.4","opakowania z papieru i tektury",null,null,null,null,null,"",null,null,"",""]
["4.5","opakowania ze szkła",null,null,null,null,null,"",null,null,"",""]
["4.6","opakowania z drewna",null,null,null,null,null,"",null,null,"",""]
["4.7","opakowania wielomateriałowe",null,null,null,null,null,"",null,null,"",""]
["4.8","pozostałe opakowania",null,null,null,null,null,{"$f":"IF(F69=0,\"\",IF(E69=0,F69,E69))","v":""},null,null,"",""]
[]
[]
[null,"Informacja o sposobie wykonania przez wprowadzającego produkty w opakowaniach obowiązku prowadzenia publicznych kampanii edukacyjnych \ni poniesione na ten cel koszty"]
[null,"Uwaga - tabeli nie wypełnia się jeżeli w roku poprzedzającym rok sprawozdawczy (2020 r.) firma nie wprowadzała na rynek produktów w opakowaniach"]
[null,"Lp.","Minimalna wysokość środków, które należy przeznaczyć na publiczne kampanie edukacyjne *)\n[zł]",null,"Wysokość środków przeznaczonych na publiczne kampanie edukacyjne *) [zł]",null,null,null,"Sposób wykorzystania środków przeznaczonych na publiczne  kampanie edukacyjne *)",null,null,null,"OBJAŚNIENIA:\nWypełnia wprowadzający produkty w opakowaniach, który samodzielnie wykonuje obowiązek prowadzenia publicznych kampanii edukacyjnych.\nWysokość środków przeznaczonych na kampanie musi stanowić co najmniej 2% wartości netto opakowań wprowadzonych do obrotu w poprzednim roku kalendarzowym (w roku 2020)."]
[null,null,null,null,"we własnym zakresie",null,"przekazana na rachunek marszałka województwa"]
[]
[null,1,2,null,3,null,4,null,5]
[null,"1."]

{"sheet":"WYNIK1","index":1,"n_rows":48,"n_cols":36,"rows_kept":48,"cut":false,"hidden":true,"merged":[[0,0,0,35],[1,0,2,0],[1,1,2,6],[5,1,5,6],[5,22,11,22],[5,23,11,23],[5,25,11,25],[5,26,11,26],[5,28,11,29],[11,1,11,6],[1,10,2,10],[1,14,2,14],[1,17,2,17],[1,22,1,24],[1,25,1,27],[1,28,1,36],[2,28,2,29],[2,30,2,31],[2,32,2,33],[2,34,2,36],[5,30,11,31],[6,1,6,6],[7,1,7,6],[11,32,11,33],[3,7,3,36],[5,34,5,36],[6,34,6,36],[7,34,7,36],[8,34,8,36],[9,34,9,36],[10,34,10,36],[17,28,17,29],[29,1,29,6],[29,28,29,29],[29,32,29,33],[13,1,13,6],[3,1,3,6],[5,32,5,33],[6,32,6,33],[11,34,11,36],[12,34,12,36],[15,34,15,36],[16,34,16,36],[17,34,17,36],[20,34,20,36],[21,34,21,36],[12,1,12,6],[7,32,7,33],[30,1,30,6],[26,32,26,33],[20,1,20,6],[20,28,20,29],[20,32,20,33],[21,1,21,6],[21,28,21,29],[21,32,21,33],[17,32,17,33],[18,1,18,6],[18,28,18,29],[24,1,24,6],[25,32,25,33],[26,1,26,6],[27,1,27,6],[28,1,28,6],[25,1,25,6],[37,0,39,0],[37,1,39,3],[37,4,37,10],[37,14,39,17],[38,4,39,5],[38,6,39,10],[30,28,30,29],[30,32,30,33],[32,1,32,6],[32,28,32,29],[32,32,32,33],[33,0,33,6],[36,0,36,17],[31,28,31,29],[31,32,31,33],[33,28,33,36],[15,26,32,26],[15,28,15,29],[15,30,32,31],[15,32,15,33],[16,1,16,6],[16,28,16,29],[16,32,16,33],[17,1,17,6],[32,34,32,36],[26,28,26,29],[18,32,18,33],[22,28,22,29],[19,1,19,6],[19,28,19,29],[19,32,19,33],[22,32,22,33],[23,32,23,33],[23,27,23,29],[23,24,23,25],[23,10,23,22],[22,1,22,6],[23,1,23,6],[31,1,31,6],[22,34,22,36],[25,34,25,36],[26,34,26,36],[27,34,27,36],[28,34,28,36],[29,34,29,36],[30,34,30,36],[18,34,18,36],[19,34,19,36],[15,1,15,6],[4,1,4,6],[14,1,14,6],[13,7,13,36],[27,28,27,29],[27,32,27,33],[28,28,28,29],[28,32,28,33],[25,28,25,29],[8,1,8,6],[8,32,8,33],[9,1,9,6],[9,32,9,33],[10,1,10,6],[10,32,10,33],[12,32,12,33],[12,28,12,29],[12,30,12,31],[5,18,11,18],[44,35,44,36],[45,35,45,36],[40,1,40,3],[40,4,40,5],[40,6,40,10],[40,14,40,17],[46,35,46,36],[44,24,44,27],[45,24,45,25],[46,24,46,25],[31,34,31,36],[47,24,47,25],[48,24,54,24],[36,32,36,36],[37,32,37,34],[38,32,38,34],[39,32,39,34],[37,35,37,36],[38,35,38,36],[39,35,39,36],[40,33,40,34],[41,33,41,34],[42,33,42,34],[43,33,43,34],[44,33,44,34],[45,33,45,34],[46,33,46,34],[40,32,46,32],[40,35,40,36],[41,35,41,36],[42,35,42,36],[47,32,47,34],[47,35,47,36],[43,35,43,36]]}
["KALKULATOR OPŁATY PRODUKTOWEJ ZA ROK 2021 - OPAKOWANIA"]
["Lp.","Rodzaj opakowania, z którego powstał odpad",null,null,null,null,null,null,null,null,"Masa opakowań wprowadzonych do obrotu w 2020 r. w tonach [Mg]",null,null,null,"Masa opakowań wprowadzonych do obrotu w 2021 r. w tonach [Mg]",null,null,"Masa wprowadzonych do obrotu opakowań stanowiąca podstawę do obliczenia w tonach [Mg]",null,null,null,null,"Wymagany poziom [%]",null,null,"Osiągnięty poziom [%]",null,null,"Wysokość należnej opłaty produktowej [zł]:"]
[null,null,null,null,null,null,null,"Masa opakowań 2020 kg","Masa tony 2020","Masa zaokrąglona 2020",null,"Masa opakowań 2021 kg","MASA TONY 2021","Masa zaokrąglona 2021",null,"Podstawa kg","PODSTAWA TONY",null,"masa poddana odzyskowi kg","masa poddana recyklingowi kg","stawka","masa *stawka","odzysku","recyklingu ogółem","recyklingu","odzysku","recyklingu ogółem","recyklingu","odzysku",null,"recyklingu ogółem",null,"recyklingu",null,"recyklingu odpadów opakowaniowych pochodzących z gospodarstw domowych"]
[1,"Opakowania jednorodne"]
[null,"Suma",null,null,null,null,null,null,null,null,{"$f":"IF(OR(SUM(K6:K12)=0,SUM(K6:K12)=\"\"),\"\",SUM(K6:K12))","v":""},null,null,null,{"$f":"IF(OR(SUM(O6:O12)=0,SUM(O6:O12)=\"\"),\"\",SUM(O6:O12))","v":""},null,null,{"$f":"IF(OR(SUM(R6:R12)=0,SUM(R6:R12)=\"\"),\"\",SUM(R6:R12))","v":""}]
["1.1","opakowania z tworzyw sztucznych",null,null,null,null,null,{"$f":"J6*1000","v":0},{"$f":"FORMULARZ!E36","v":0},{"$f":"ROUND(FORMULARZ!E36,4)","v":0},{"$f":"IF(OR(I6=0,I6=\"\"),\"\",J6)","v":""},{"$f":"N6*1000","v":0},{"$f":"FORMULARZ!F36","v":0},{"$f":"ROUND(FORMULARZ!F36,4)","v":0},{"$f":"IF(OR(M6=0),\"\",N6)","v":""},{"$f":"Q6*1000","v":0},{"$f":"IF(FORMULARZ!H36=\"\",0,ROUND(FORMULARZ!H36,4))","v":0},{"$f":"IF(OR(Q6=\"\",Q6=0),\"\",Q6)","v":""},{"$f":"(ROUND(FORMULARZ!M36,4))*1000","v":0},{"$f":"(ROUND(FORMULARZ!O36,4))*1000","v":0},2.7,{"$f":"IF(OR(P6=0,P6=\"\"),0,P6*U6)","v":0},61,56,23.5,{"$f":"IF(OR(SUM(P6:P12)=0,SUM(P6:P12)=\"\"),\"\",ROUND((SUM(S6)/SUM(P6:P12))*100,2))","v":""},{"$f":"IF(OR(SUM(P6:P12)=0,SUM(P6:P12)=\"\"),\"\",ROUND((SUM(T6:T12)/SUM(P6:P12))*100,2))","v":""},{"$f":"IF(OR(P6=\"\",P6=0),\"\",ROUND((T6/P6)*100,2))","v":""},{"$f":"IF(OR(SUM($V$6:$V$12)=0,SUM($V$6:$V$12)=\"\"),\"\",IF(Z6>=W6,0,ROUND(SUM($V$6:$V$12)*((W6-Z6)/100),2)))","v":""},null,{"$f":"IF(OR(SUM($V$6:$V$12)=0,SUM($V$6:$V$12)=\"\"),\"\",IF(AA6>=X6,0,ROUND(SUM($V$6:$V$12)*((X6-AA6)/100),2)))","v":""},null,{"$f":"IF(OR(V6=0,V6=\"\"),\"\",IF(AB6>=Y6,0,ROUND(((Y6-AB6)/100)*V6,2)))","v":""},null,0]
["1.2","opakowania z aluminium",null,null,null,null,null,{"$f":"J7*1000","v":0},{"$f":"FORMULARZ!E37","v":0},{"$f":"ROUND(FORMULARZ!E37,4)","v":0},{"$f":"IF(OR(I7=0,I7=\"\"),\"\",I7)","v":""},{"$f":"N7*1000","v":0},{"$f":"FORMULARZ!F37","v":0},{"$f":"ROUND(FORMULARZ!F37,4)","v":0},{"$f":"IF(OR(M7=0),\"\",M7)","v":""},{"$f":"Q7*1000","v":0},{"$f":"IF(FORMULARZ!H37=\"\",0,ROUND(FORMULARZ!H37,4))","v":0},{"$f":"IF(OR(Q7=\"\",Q7=0),\"\",Q7)","v":""},null,{"$f":"(ROUND(FORMULARZ!O37,4))*1000","v":0},1.4,{"$f":"IF(OR(P7=0,P7=\"\"),0,P7*U7)","v":0},null,null,51,null,null,{"$f":"IF(OR(P7=\"\",P7=0),\"\",ROUND((T7/P7)*100,2))","v":""},null,null,null,null,{"$f":"IF(OR(V7=0,V7=\"\"),\"\",IF(AB7>=Y7,0,ROUND(((Y7-AB7)/100)*V7,2)))","v":""},null,0]
["1.3","opakowania ze stali, w tym z blachy stalowej",null,null,null,null,null,0,{"$f":"FORMULARZ!E38","v":0},{"$f":"ROUND(FORMULARZ!E38,4)","v":0},"",0,{"$f":"FORMULARZ!F38","v":0},{"$f":"ROUND(FORMULARZ!F38,4)","v":0},"",{"$f":"Q8*1000","v":0},{"$f":"IF(FORMULARZ!H38=\"\",0,ROUND(FORMULARZ!H38,4))","v":0},"",null,{"$f":"(ROUND(FORMULARZ!O38,4))*1000","v":0},0.8,0,null,null,51,null,null,"",null,null,null,null,"",null,0]
["1.4","opakowania z papieru i tektury",null,null,null,null,null,0,{"$f":"FORMULARZ!E39","v":0},{"$f":"ROUND(FORMULARZ!E39,4)","v":0},"",0,{"$f":"FORMULARZ!F39","v":0},{"$f":"ROUND(FORMULARZ!F39,4)","v":0},"",0,{"$f":"IF(FORMULARZ!H39=\"\",0,ROUND(FORMULARZ!H39,4))","v":0},"",null,{"$f":"(ROUND(FORMULARZ!O39,4))*1000","v":0},0.7,0,null,null,61,null,null,"",null,null,null,null,"",null,0]
["1.5","opakowania ze szkła gospodarczego, poza ampułkami",null,null,null,null,null,0,{"$f":"FORMULARZ!E40","v":0},{"$f":"ROUND(FORMULARZ!E40,4)","v":0},"",0,{"$f":"FORMULARZ!F40","v":0},{"$f":"ROUND(FORMULARZ!F40,4)","v":0},"",0,{"$f":"IF(FORMULARZ!H40=\"\",0,ROUND(FORMULARZ!H40,4))","v":0},"",null,{"$f":"(ROUND(FORMULARZ!O40,4))*1000","v":0},0.3,0,null,null,61,null,null,"",null,null,null,null,"",null,0]
["1.6","opakowania z drewna",null,null,null,null,null,0,{"$f":"FORMULARZ!E41","v":0},{"$f":"ROUND(FORMULARZ!E41,4)","v":0},"",0,{"$f":"FORMULARZ!F41","v":0},{"$f":"ROUND(FORMULARZ!F41,4)","v":0},"",0,{"$f":"IF(FORMULARZ!H41=\"\",0,ROUND(FORMULARZ!H41,4))","v":0},"",null,{"$f":"(ROUND(FORMULARZ!O41,4))*1000","v":0},0.3,0,null,null,16,null,null,"",null,null,null,null,"",null,0]
["1.7","pozostałe",null,null,null,null,null,0,{"$f":"FORMULARZ!E42","v":0},{"$f":"ROUND(FORMULARZ!E42,4)","v":0},"",0,{"$f":"FORMULARZ!F42","v":0},{"$f":"ROUND(FORMULARZ!F42,4)","v":0},"",0,{"$f":"IF(FORMULARZ!H42=\"\",0,ROUND(FORMULARZ!H42,4))","v":0},"",null,{"$f":"(ROUND(FORMULARZ!O42,4))*1000","v":0},1,0,null,null,"-",null,null,"",null,null,null,null,{"$f":"IF(OR(V12=0,V12=\"\"),\"\",IF(AB12>=Y12,0,ROUND(((Y12-AB12)/100)*V12,2)))","v":""},null,0]
[2,"Opakowania wielomateriałowe ",null,null,null,null,null,0,{"$f":"FORMULARZ!E43","v":0},{"$f":"ROUND(FORMULARZ!E43,4)","v":0},"",0,{"$f":"FORMULARZ!F43","v":0},{"$f":"ROUND(FORMULARZ!F43,4)","v":0},"",0,{"$f":"IF(FORMULARZ!H43=\"\",0,ROUND(FORMULARZ!H43,4))","v":0},"",{"$f":"(ROUND(FORMULARZ!M43,4))*1000","v":0},{"$f":"(ROUND(FORMULARZ!O43,4))*1000","v":0},1.7,0,61,56,44,{"$f":"IF(OR(P13=0,P13=\"\"),\"\",(S13/P13)*100)","v":""},{"$f":"IF(OR(P13=0,P13=\"\"),\"\",IF((T13/P13)*100<=Z13,ROUND((T13/P13)*100,2),Arkusz3!$B$3))","v":""},"",{"$f":"IF(OR(V13=0,V13=\"\"),\"\",IF(Z13>=W13,0,ROUND(V13*(W13-Z13)/100,2)))","v":""},null,{"$f":"IF(OR(V13=0,V13=\"\"),\"\",IF(AA13>=X13,0,ROUND(V13*((X13-AA13)/100),2)))","v":""},null,"",null,0]
[3,"Opakowania po środkach niebezpiecznych innych niż środki ochrony roślin"]
[null,"Suma",null,null,null,null,null,null,null,null,{"$f":"IF(OR(SUM(K16:K23)=0,SUM(K16:K23)=\"\"),\"\",SUM(K16:K23))","v":""},null,null,null,{"$f":"IF(OR(SUM(O16:O23)=0,SUM(O16:O23)=\"\"),\"\",SUM(O16:O23))","v":""},null,null,{"$f":"IF(OR(SUM(R16:R23)=0,SUM(R16:R23)=\"\"),\"\",SUM(R16:R23))","v":""}]
["3.1","opakowania z tworzyw sztucznych",null,null,null,null,null,{"$f":"J16*1000","v":0},{"$f":"FORMULARZ!E53","v":0},{"$f":"ROUND(FORMULARZ!E53,4)","v":0},{"$f":"IF(OR(I16=0,I16=\"\"),\"\",I16)","v":""},{"$f":"N16*1000","v":0},{"$f":"FORMULARZ!F53","v":0},{"$f":"ROUND(FORMULARZ!F53,4)","v":0},{"$f":"IF(M16=0,\"\",M16)","v":""},{"$f":"Q16*1000","v":0},{"$f":"IF(FORMULARZ!H53=\"\",0,ROUND(FORMULARZ!H53,4))","v":0},{"$f":"IF(OR(Q16=\"\",Q16=0),\"\",Q16)","v":""},{"$f":"(ROUND(FORMULARZ!M53,4))*1000","v":0},{"$f":"(ROUND(FORMULARZ!O53,4))*1000","v":0},2.7,{"$f":"IF(OR(P16=0,P16=\"\"),0,P16*U16)","v":0},53,null,34,{"$f":"IF(OR(P16=0,P16=\"\"),\"\",ROUND((S16/P16)*100,2))","v":""},null,"",{"$f":"IF(OR(V16=0,V16=\"\"),\"\",IF(Z16>=W16,0,V16*((W16-Z16)/100)))","v":""},null,null,null,{"$f":"IF(OR(V16=0,V16=\"\"),\"\",IF(AB16>=Y16,0,ROUND(((Y16-AB16)/100)*V16,2)))","v":""},null,0]
["3.2","opakowania z aluminium",null,null,null,null,null,{"$f":"J17*1000","v":0},{"$f":"FORMULARZ!E54","v":0},{"$f":"ROUND(FORMULARZ!E54,4)","v":0},{"$f":"IF(OR(I17=0,I17=\"\"),\"\",I17)","v":""},{"$f":"N17*1000","v":0},{"$f":"FORMULARZ!F54","v":0},{"$f":"ROUND(FORMULARZ!F54,4)","v":0},{"$f":"IF(M17=0,\"\",M17)","v":""},{"$f":"Q17*1000","v":0},{"$f":"IF(FORMULARZ!H54=\"\",0,ROUND(FORMULARZ!H54,4))","v":0},{"$f":"IF(OR(Q17=\"\",Q17=0),\"\",Q17)","v":""},{"$f":"(ROUND(FORMULARZ!M54,4))*1000","v":0},{"$f":"(ROUND(FORMULARZ!O54,4))*1000","v":0},1.4,{"$f":"IF(OR(P17=0,P17=\"\"),0,P17*U17)","v":0},53,null,34,{"$f":"IF(OR(P17=0,P17=\"\"),\"\",ROUND((S17/P17)*100,2))","v":""},null,"",{"$f":"IF(OR(V17=0,V17=\"\"),\"\",IF(Z17>=W17,0,V17*((W17-Z17)/100)))","v":""},null,null,null,{"$f":"IF(OR(V17=0,V17=\"\"),\"\",IF(AB17>=Y17,0,ROUND(((Y17-AB17)/100)*V17,2)))","v":""},null,0]
["3.3","opakowania ze stali, w tym z blachy stalowej",null,null,null,null,null,0,{"$f":"FORMULARZ!E55","v":0},{"$f":"ROUND(FORMULARZ!E55,4)","v":0},"",0,{"$f":"FORMULARZ!F55","v":0},{"$f":"ROUND(FORMULARZ!F55,4)","v":0},"",0,{"$f":"IF(FORMULARZ!H55=\"\",0,ROUND(FORMULARZ!H55,4))","v":0},"",{"$f":"(ROUND(FORMULARZ!M55,4))*1000","v":0},{"$f":"(ROUND(FORMULARZ!O55,4))*1000","v":0},0.8,0,53,null,34,"",null,"",{"$f":"IF(OR(V18=0,V18=\"\"),\"\",IF(Z18>=W18,0,V18*((W18-Z18)/100)))","v":""},null,null,null,"",null,0]
["3.4","opakowania z papieru i tektury",null,null,null,null,null,0,{"$f":"FORMULARZ!E56","v":0},{"$f":"ROUND(FORMULARZ!E56,4)","v":0},"",0,{"$f":"FORMULARZ!F56","v":0},{"$f":"ROUND(FORMULARZ!F56,4)","v":0},"",0,{"$f":"IF(FORMULARZ!H56=\"\",0,ROUND(FORMULARZ!H56,4))","v":0},"",{"$f":"(ROUND(FORMULARZ!M56,4))*1000","v":0},{"$f":"(ROUND(FORMULARZ!O56,4))*1000","v":0},0.7,0,53,null,34,"",null,"","",null,null,null,"",null,0]
["3.5","opakowania ze szkła gospodarczego, poza ampułkami",null,null,null,null,null,0,{"$f":"FORMULARZ!E57","v":0},{"$f":"ROUND(FORMULARZ!E57,4)","v":0},"",0,{"$f":"FORMULARZ!F57","v":0},{"$f":"ROUND(FORMULARZ!F57,4)","v":0},"",0,{"$f":"IF(FORMULARZ!H57=\"\",0,ROUND(FORMULARZ!H57,4))","v":0},"",{"$f":"(ROUND(FORMULARZ!M57,4))*1000","v":0},{"$f":"(ROUND(FORMULARZ!O57,4))*1000","v":0},0.3,0,53,null,34,"",null,"","",null,null,null,"",null,0]
["3.6","opakowania z drewna",null,null,null,null,null,0,{"$f":"FORMULARZ!E58","v":0},{"$f":"ROUND(FORMULARZ!E58,4)","v":0},"",0,{"$f":"FORMULARZ!F58","v":0},{"$f":"ROUND(FORMULARZ!F58,4)","v":0},"",0,{"$f":"IF(FORMULARZ!H58=\"\",0,ROUND(FORMULARZ!H58,4))","v":0},"",{"$f":"(ROUND(FORMULARZ!M58,4))*1000","v":0},{"$f":"(ROUND(FORMULARZ!O58,4))*1000","v":0},0.3,0,53,null,34,"",null,"","",null,null,null,"",null,0]
["3.7","opakowania wielomateriałowe",null,null,null,null,null,0,{"$f":"FORMULARZ!E59","v":0},{"$f":"ROUND(FORMULARZ!E59,4)","v":0},"",0,{"$f":"FORMULARZ!F59","v":0},{"$f":"ROUND(FORMULARZ!F59,4)","v":0},"",0,{"$f":"IF(FORMULARZ!H59=\"\",0,ROUND(FORMULARZ!H59,4))","v":0},"",{"$f":"(ROUND(FORMULARZ!M59,4))*1000","v":0},{"$f":"(ROUND(FORMULARZ!O59,4))*1000","v":0},1.7,0,53,null,34,"",null,"","",null,null,null,"",null,0]
["3.8","pozostałe opakowania",null,null,null,null,null,0,{"$f":"FORMULARZ!E60","v":0},{"$f":"ROUND(FORMULARZ!E60,4)","v":0},"",0,{"$f":"FORMULARZ!F60","v":0},{"$f":"ROUND(FORMULARZ!F60,4)","v":0},"",0,{"$f":"IF(FORMULARZ!H60=\"\",0,ROUND(FORMULARZ!H60,4))","v":0},"",{"$f":"(ROUND(FORMULARZ!M60,4))*1000","v":0},{"$f":"(ROUND(FORMULARZ!O60,4))*1000","v":0},1,0,null,null,null,null,null,null,null,null,null,null,null,null,0]
["4","Opakowania po środkach niebezpiecznych będących środkami ochrony roślin",null,null,null,null,null,null,null,null,{"$f":"IF(H24=0,\"\",H24/1000)","v":""},null,null,null,null,null,null,null,null,null,null,null,null,null,null,null,null,null,null,null,null,null,{"$f":"IF(OR(V24=0,V24=\"\"),\"\",IF(AB24<=Z24,IF(AB24>=Y24,0,ROUND((AB24/100)*V24,2)),Arkusz3!$B$4))","v":""}]
[null,"Suma",null,null,null,null,null,null,null,null,{"$f":"IF(OR(SUM(K26:K33)=0,SUM(K26:K33)=\"\"),\"\",SUM(K26:K33))","v":""},null,null,null,{"$f":"IF(OR(SUM(O26:O32)=0,SUM(O26:O32)=\"\"),\"\",SUM(O26:O32))","v":""},null,null,{"$f":"IF(OR(SUM(R26:R32)=0,SUM(R26:R32)=\"\"),\"\",SUM(R26:R32))","v":""}]
["4.1","opakowania z tworzyw sztucznych",null,null,null,null,null,{"$f":"J26*1000","v":0},{"$f":"FORMULARZ!E62","v":0},{"$f":"ROUND(FORMULARZ!E62,4)","v":0},{"$f":"IF(OR(I26=0,I26=\"\"),\"\",I26)","v":""},{"$f":"N26*1000","v":0},{"$f":"FORMULARZ!F62","v":0},{"$f":"ROUND(FORMULARZ!F62,4)","v":0},{"$f":"IF(M26=0,\"\",M26)","v":""},{"$f":"Q26*1000","v":0},{"$f":"IF(FORMULARZ!H62=\"\",0,ROUND(FORMULARZ!H62,4))","v":0},"",{"$f":"(ROUND(FORMULARZ!M62,4))*1000","v":0},{"$f":"(ROUND(FORMULARZ!O62,4))*1000","v":0},2.7,{"$f":"IF(OR(P26=0,P26=\"\"),0,P26*U26)","v":0},53,null,34,{"$f":"IF(OR(P26=0,P26=\"\"),\"\",ROUND((S26/P26)*100,2))","v":""},null,{"$f":"IF(OR(P26=0,P26=\"\"),\"\",ROUND((T26/P26)*100,2))","v":""},{"$f":"IF(OR(V26=0,V26=\"\"),\"\",IF(Z26>=W26,0,V26*((W26-Z26)/100)))","v":""},null,null,null,{"$f":"IF(OR(V26=0,V26=\"\"),\"\",IF(AB26>=Y26,0,ROUND(((Y26-AB26)/100)*V26,2)))","v":""},null,0]
["4.2","opakowania z aluminium",null,null,null,null,null,{"$f":"J27*1000","v":0},{"$f":"FORMULARZ!E63","v":0},{"$f":"ROUND(FORMULARZ!E63,4)","v":0},{"$f":"IF(OR(I27=0,I27=\"\"),\"\",I27)","v":""},{"$f":"N27*1000","v":0},{"$f":"FORMULARZ!F63","v":0},{"$f":"ROUND(FORMULARZ!F63,4)","v":0},{"$f":"IF(M27=0,\"\",M27)","v":""},{"$f":"Q27*1000","v":0},{"$f":"IF(FORMULARZ!H63=\"\",0,ROUND(FORMULARZ!H63,4))","v":0},"",{"$f":"(ROUND(FORMULARZ!M63,4))*1000","v":0},{"$f":"(ROUND(FORMULARZ!O63,4))*1000","v":0},1.4,{"$f":"IF(OR(P27=0,P27=\"\"),0,P27*U27)","v":0},53,null,34,{"$f":"IF(OR(P27=0,P27=\"\"),\"\",ROUND((S27/P27)*100,2))","v":""},null,{"$f":"IF(OR(P27=0,P27=\"\"),\"\",ROUND((T27/P27)*100,2))","v":""},{"$f":"IF(OR(V27=0,V27=\"\"),\"\",IF(Z27>=W27,0,V27*((W27-Z27)/100)))","v":""},null,null,null,{"$f":"IF(OR(V27=0,V27=\"\"),\"\",IF(AB27>=Y27,0,ROUND(((Y27-AB27)/100)*V27,2)))","v":""},null,0]
["4.3","opakowania ze stali, w tym z blachy stalowej",null,null,null,null,null,0,{"$f":"FORMULARZ!E64","v":0},{"$f":"ROUND(FORMULARZ!E64,4)","v":0},"",0,{"$f":"FORMULARZ!F64","v":0},{"$f":"ROUND(FORMULARZ!F64,4)","v":0},"",0,{"$f":"IF(FORMULARZ!H64=\"\",0,ROUND(FORMULARZ!H64,4))","v":0},"",{"$f":"(ROUND(FORMULARZ!M64,4))*1000","v":0},{"$f":"(ROUND(FORMULARZ!O64,4))*1000","v":0},0.8,0,53,null,34,"",null,"","",null,null,null,"",null,0]
["4.4","opakowania z papieru i tektury",null,null,null,null,null,0,{"$f":"FORMULARZ!E65","v":0},{"$f":"ROUND(FORMULARZ!E65,4)","v":0},"",0,{"$f":"FORMULARZ!F65","v":0},{"$f":"ROUND(FORMULARZ!F65,4)","v":0},"",0,{"$f":"IF(FORMULARZ!H65=\"\",0,ROUND(FORMULARZ!H65,4))","v":0},"",{"$f":"(ROUND(FORMULARZ!M65,4))*1000","v":0},{"$f":"(ROUND(FORMULARZ!O65,4))*1000","v":0},0.7,0,53,null,34,"",null,"","",null,null,null,"",null,0]
["4.5","opakowania ze szkła gospodarczego, poza ampułkami",null,null,null,null,null,0,{"$f":"FORMULARZ!E66","v":0},{"$f":"ROUND(FORMULARZ!E66,4)","v":0},"",0,{"$f":"FORMULARZ!F66","v":0},{"$f":"ROUND(FORMULARZ!F66,4)","v":0},"",0,{"$f":"IF(FORMULARZ!H66=\"\",0,ROUND(FORMULARZ!H66,4))","v":0},"",{"$f":"(ROUND(FORMULARZ!M66,4))*1000","v":0},{"$f":"(ROUND(FORMULARZ!O66,4))*1000","v":0},0.3,0,53,null,34,"",null,"","",null,null,null,"",null,0]
["4.6","opakowania z drewna",null,null,null,null,null,0,{"$f":"FORMULARZ!E67","v":0},{"$f":"ROUND(FORMULARZ!E67,4)","v":0},"",0,{"$f":"FORMULARZ!F67","v":0},{"$f":"ROUND(FORMULARZ!F67,4)","v":0},"",0,{"$f":"IF(FORMULARZ!H67=\"\",0,ROUND(FORMULARZ!H67,4))","v":0},"",{"$f":"(ROUND(FORMULARZ!M67,4))*1000","v":0},{"$f":"(ROUND(FORMULARZ!O67,4))*1000","v":0},0.3,0,53,null,34,"",null,"","",null,null,null,"",null,0]
["4.7","opakowania wielomateriałowe",null,null,null,null,null,0,{"$f":"FORMULARZ!E68","v":0},{"$f":"ROUND(FORMULARZ!E68,4)","v":0},"",0,{"$f":"FORMULARZ!F68","v":0},{"$f":"ROUND(FORMULARZ!F68,4)","v":0},"",0,{"$f":"IF(FORMULARZ!H68=\"\",0,ROUND(FORMULARZ!H68,4))","v":0},"",{"$f":"(ROUND(FORMULARZ!M68,4))*1000","v":0},{"$f":"(ROUND(FORMULARZ!O68,4))*1000","v":0},1.7,0,53,null,34,"",null,"","",null,null,null,"",null,0]
["4.8","pozostałe opakowania",null,null,null,null,null,0,{"$f":"FORMULARZ!E69","v":0},{"$f":"ROUND(FORMULARZ!E69,4)","v":0},"",0,{"$f":"FORMULARZ!F69","v":0},{"$f":"ROUND(FORMULARZ!F69,4)","v":0},"",0,{"$f":"IF(FORMULARZ!H69=\"\",0,ROUND(FORMULARZ!H69,4))","v":0},"",{"$f":"(ROUND(FORMULARZ!M69,4))*1000","v":0},{"$f":"(ROUND(FORMULARZ!O69,4))*1000","v":0},1,0,null,null,null,null,null,null,null,null,null,null,null,null,0]
["Łączna opłata produktowa",null,null,null,null,null,null,null,null,null,null,null,null,null,null,null,null,null,null,null,null,null,null,null,null,null,null,null,{"$f":"ROUND(SUM(AC6,AC13,AC16:AD22,AC26:AD32,AE6,AG6:AH13,AE13,AG16:AH23,AG26:AH33),0)","v":0}]
[null,null,null,null,null,null,null,null,null,null,{"$f":"SUM(K5,K13,K15,K25)","v":0}]
[]
["Obowiązek prowadzenia publicznych kampanii edukacyjnych",null,null,null,null,null,null,null,null,null,null,null,null,null,null,null,null,null,null,null,null,null,null,null,null,null,null,null,null,null,null,null,"Podsumowanie"]
["Lp.","Minimalna wysokość środków, które należy przeznaczyć na publiczne kampanie edukacyjne \n[zł]",null,null,"Wysokość środków przeznaczonych na publiczne kampanie edukacyjne [zł]",null,null,null,null,null,null,null,null,null,"Sposób wykorzystania środków przeznaczonych na publiczne  kampanie edukacyjne",null,null,null,null,null,null,null,null,null,null,null,null,null,null,null,null,null,"Wysokość należnej opłaty produktowej za:",null,null,"zł"]
[null,null,null,null,"we własnym zakresie",null,"przekazana na rachunek marszałka województwa",null,null,null,null,null,null,null,null,null,null,null,null,null,null,null,null,null,null,null,null,null,null,null,null,null,"Odzysk razem",null,null,{"$f":"SUM(AC6,AC13,AC16,AC17,AC18,AC19,AC20,AC21,AC22,AC26,AC27,AC28,AC29,AC30,AC31,AC32)","v":0}]
[null,null,null,null,null,null,null,null,null,null,null,null,null,null,null,null,null,null,null,null,null,null,null,null,null,null,null,null,null,null,null,null,"Recykling razem",null,null,{"$f":"SUM(AE6,AE13)","v":0}]
["1.",{"$f":"IF(OR(FORMULARZ!C78=0,FORMULARZ!C78=\"\"),\"\",FORMULARZ!C78)","v":""},null,null,{"$f":"IF(OR(FORMULARZ!E78=0,FORMULARZ!E78=\"\"),\"\",FORMULARZ!E78)","v":""},null,{"$f":"IF(OR(FORMULARZ!G78=0,FORMULARZ!G78=\"\"),\"\",FORMULARZ!G78)","v":""},null,null,null,null,null,null,null,{"$f":"IF(OR(FORMULARZ!I78=0,FORMULARZ!I78=\"\"),\"\",FORMULARZ!I78)","v":""},null,null,null,null,null,null,null,null,null,null,null,null,null,null,null,null,null,"Recykling","Tworzywa sztuczne",null,{"$f":"SUM(AG6,AG16,AG26)","v":0}]
[null,null,null,null,null,null,null,null,null,null,null,null,null,null,null,null,null,null,null,null,null,null,null,null,null,null,null,null,null,null,null,null,null,"Aluminium",null,0]
[null,null,null,null,null,null,null,null,null,null,null,null,null,null,null,null,null,null,null,null,null,null,null,null,null,null,null,null,null,null,null,null,null,"Stal, w tym blacha stalowa",null,0]
[null,null,null,null,null,null,null,null,null,null,null,null,null,null,null,null,null,null,null,null,null,null,null,null,null,null,null,null,null,null,null,null,null,"Papier i tektura",null,0]
[null,null,null,null,null,null,null,null,null,null,null,null,null,null,null,null,null,null,null,null,null,null,null,null,null,null,null,null,null,null,null,null,null,"Szkło",null,0]
[null,null,null,null,null,null,null,null,null,null,null,null,null,null,null,null,null,null,null,null,null,null,null,null,null,null,null,null,null,null,null,null,null,"Drewno",null,0]
[null,null,null,null,null,null,null,null,null,null,null,null,null,null,null,null,null,null,null,null,null,null,null,null,null,null,null,null,null,null,null,null,null,"Wielomateriałowe",null,{"$f":"SUM(AG13,AG22,AG32)","v":0}]
[null,null,null,null,null,null,null,null,null,null,null,null,null,null,null,null,null,null,null,null,null,null,null,null,null,null,null,null,null,null,null,null,"Łączna opłata produktowa:",null,null,{"$f":"ROUND(SUM(AJ39:AK47),0)","v":0}]

{"sheet":"Arkusz3","index":2,"n_rows":4,"n_cols":2,"rows_kept":4,"cut":false,"hidden":true,"merged":[]}
[]
[]
[null,"błąd- poziom recyklingu nie może być wyższy niż poziom odzysku"]
[null,"błąd: odzysk<recykling"]

{"sheet":"WYNIK","index":3,"n_rows":912,"n_cols":14,"rows_kept":912,"cut":false,"hidden":false,"merged":[[312,2,312,7],[277,2,277,7],[382,2,382,7],[417,2,417,7],[452,2,452,7],[487,2,487,7],[522,2,522,7],[563,2,563,7],[594,2,594,7],[586,2,586,3],[586,6,586,7],[590,2,590,3],[590,6,590,7],[592,2,592,3],[592,6,592,7],[578,2,578,3],[578,6,578,8],[580,2,580,3],[580,6,580,8],[584,2,584,3],[584,6,584,7],[569,2,569,4],[569,6,569,8],[540,2,540,3],[558,14,559,14],[805,2,806,12],[805,14,806,14],[893,2,894,12],[893,14,894,14],[4,2,4,12],[271,2,271,12],[557,2,557,12],[208,14,209,14],[272,14,273,14],[198,2,198,3],[198,6,198,8],[202,2,202,3],[202,6,202,8],[204,2,204,3],[204,6,204,8],[190,2,190,3],[190,6,190,8],[192,2,192,3],[192,6,192,8],[196,2,196,3],[196,6,196,8],[180,2,180,3],[180,6,180,8],[184,2,184,3],[184,6,184,8],[186,2,186,3],[186,6,186,8],[172,2,172,3],[172,6,172,8],[174,2,174,3],[174,6,174,8],[178,2,178,3],[178,6,178,8],[147,2,147,3],[147,6,147,8],[151,2,151,3],[151,6,151,8],[153,2,153,3],[153,6,153,8],[139,2,139,3],[139,6,139,8],[141,2,141,3],[141,6,141,8],[145,2,145,3],[145,6,145,8],[129,2,129,3],[129,6,129,8],[133,2,133,3],[133,6,133,8],[135,2,135,3],[135,6,135,8],[121,2,121,3],[121,6,121,8],[123,2,123,3],[123,6,123,8],[127,2,127,3],[127,6,127,8],[96,2,96,3],[96,6,96,8],[100,2,100,3],[100,6,100,8],[102,2,102,3],[102,6,102,8],[88,2,88,3],[88,6,88,8],[90,2,90,3],[90,6,90,8],[94,2,94,3],[94,6,94,8],[78,2,78,3],[78,6,78,8],[82,2,82,3],[82,6,82,8],[84,2,84,3],[84,6,84,8],[70,2,70,3],[70,6,70,8],[72,2,72,3],[72,6,72,8],[76,2,76,3],[76,6,76,8],[58,2,58,3],[58,6,58,8],[60,2,60,3],[60,6,60,8],[64,2,64,3],[66,2,66,3],[49,2,49,4],[49,6,49,8],[49,10,49,12],[51,2,51,4],[51,6,51,8],[51,10,51,12],[43,2,43,4],[43,6,43,8],[43,10,43,12],[45,2,45,4],[45,6,45,8],[45,10,45,12],[37,2,37,4],[37,6,37,8],[37,10,37,12],[39,2,39,4],[39,6,39,8],[39,10,39,12],[31,2,31,4],[31,6,31,8],[31,10,31,12],[33,2,33,4],[33,6,33,8],[33,10,33,12],[19,10,19,12],[21,2,21,4],[21,6,21,8],[21,10,21,12],[25,2,25,4],[25,6,25,8],[25,10,25,12],[27,2,27,4],[27,6,27,8],[27,10,27,12],[911,2,911,10],[5,2,5,12],[11,2,11,4],[11,6,11,8],[11,10,11,12],[13,2,13,4],[13,6,13,8],[13,10,13,12],[19,2,19,4],[19,6,19,8],[899,2,899,10],[901,2,901,11],[903,2,903,10],[905,2,905,11],[907,2,907,10],[909,2,909,11],[886,2,886,3],[886,6,886,8],[890,2,890,5],[890,6,890,8],[897,2,897,11],[874,2,875,3],[874,6,875,8],[877,2,877,3],[877,6,877,8],[881,2,881,6],[883,2,884,3],[883,6,884,8],[863,2,863,6],[865,2,866,3],[865,6,866,8],[868,2,868,3],[868,6,868,8],[872,2,872,6],[870,2,870,3],[879,2,879,3],[850,2,850,3],[850,6,850,8],[854,2,854,6],[856,2,857,3],[856,6,857,8],[859,2,859,3],[859,6,859,8],[838,2,839,3],[838,6,839,8],[841,2,841,3],[841,6,841,8],[845,2,845,6],[847,2,848,3],[847,6,848,8],[843,2,843,3],[827,2,827,6],[829,2,830,3],[829,6,830,8],[832,2,832,3],[832,6,832,8],[836,2,836,6],[814,2,814,6],[818,2,818,6],[820,2,821,3],[820,6,821,8],[823,2,823,3],[823,6,823,8],[816,2,816,4],[825,2,825,3],[834,2,834,7],[800,2,800,3],[800,6,800,7],[802,2,802,3],[802,6,802,7],[812,2,812,3],[812,5,812,6],[790,2,790,3],[790,6,790,8],[794,2,794,3],[794,6,794,7],[796,2,796,3],[796,6,796,7],[784,2,784,3],[784,6,784,8],[786,2,786,3],[786,6,786,8],[788,2,788,3],[788,6,788,8],[772,2,772,3],[772,6,772,7],[778,2,778,4],[778,6,778,8],[774,2,774,7],[778,10,778,12],[780,2,780,4],[780,6,780,8],[780,10,780,12],[764,2,764,3],[764,6,764,7],[766,2,766,3],[766,6,766,7],[770,2,770,3],[770,6,770,7],[756,2,756,3],[756,6,756,8],[758,2,758,3],[758,6,758,8],[760,2,760,3],[760,6,760,8],[748,10,748,12],[750,2,750,4],[750,6,750,8],[750,10,750,12],[754,2,754,3],[754,6,754,8],[740,2,740,3],[740,6,740,7],[742,2,742,3],[742,6,742,7],[748,2,748,4],[748,6,748,8],[730,2,730,3],[730,6,730,8],[734,2,734,3],[734,6,734,7],[736,2,736,3],[736,6,736,7],[744,2,744,7],[724,2,724,3],[724,6,724,8],[726,2,726,3],[726,6,726,8],[728,2,728,3],[728,6,728,8],[712,2,712,3],[712,6,712,7],[718,2,718,4],[718,6,718,8],[714,2,714,7],[718,10,718,12],[720,2,720,4],[720,6,720,8],[720,10,720,12],[704,2,704,3],[704,6,704,7],[706,2,706,3],[706,6,706,7],[710,2,710,3],[710,6,710,7],[696,2,696,3],[696,6,696,8],[698,2,698,3],[698,6,698,8],[700,2,700,3],[700,6,700,8],[688,10,688,12],[690,2,690,4],[690,6,690,8],[690,10,690,12],[694,2,694,3],[694,6,694,8],[680,2,680,3],[680,6,680,7],[682,2,682,3],[682,6,682,7],[688,2,688,4],[688,6,688,8],[670,2,670,3],[670,6,670,8],[674,2,674,3],[674,6,674,7],[676,2,676,3],[676,6,676,7],[684,2,684,7],[664,2,664,3],[664,6,664,8],[666,2,666,3],[666,6,666,8],[668,2,668,3],[668,6,668,8],[652,2,652,3],[652,6,652,7],[658,2,658,4],[658,6,658,8],[654,2,654,7],[658,10,658,12],[660,2,660,4],[660,6,660,8],[660,10,660,12],[644,2,644,3],[644,6,644,7],[646,2,646,3],[646,6,646,7],[650,2,650,3],[650,6,650,7],[636,2,636,3],[636,6,636,8],[638,2,638,3],[638,6,638,8],[640,2,640,3],[640,6,640,8],[628,10,628,12],[630,2,630,4],[630,6,630,8],[630,10,630,12],[634,2,634,3],[634,6,634,8],[620,2,620,3],[620,6,620,7],[622,2,622,3],[622,6,622,7],[628,2,628,4],[628,6,628,8],[610,2,610,3],[610,6,610,8],[614,2,614,3],[614,6,614,7],[616,2,616,3],[616,6,616,7],[624,2,624,7],[604,2,604,3],[604,6,604,8],[606,2,606,3],[606,6,606,8],[608,2,608,3],[608,6,608,8],[598,2,598,4],[598,6,598,8],[598,10,598,12],[600,2,600,4],[600,6,600,8],[600,10,600,12],[569,10,569,12],[574,2,574,3],[574,6,574,8],[576,2,576,3],[576,6,576,8],[552,2,552,3],[552,6,552,7],[554,2,554,3],[554,6,554,7],[558,2,559,12],[567,2,567,4],[567,6,567,8],[567,10,567,12],[540,6,540,8],[545,2,545,3],[545,6,545,7],[547,2,547,3],[547,6,547,7],[533,2,533,3],[533,6,533,8],[535,2,535,3],[535,6,535,8],[538,2,538,3],[538,6,538,8],[519,2,519,3],[519,6,519,7],[526,2,526,4],[526,6,526,8],[526,10,526,12],[528,2,528,4],[528,6,528,8],[528,10,528,12],[510,2,510,3],[510,6,510,7],[512,2,512,3],[512,6,512,7],[517,2,517,3],[517,6,517,7],[500,2,500,3],[500,6,500,8],[503,2,503,3],[503,6,503,8],[505,2,505,3],[505,6,505,8],[491,10,491,12],[493,2,493,4],[493,6,493,8],[493,10,493,12],[498,2,498,3],[498,6,498,8],[482,2,482,3],[482,6,482,7],[484,2,484,3],[484,6,484,7],[491,2,491,4],[491,6,491,8],[470,2,470,3],[470,6,470,8],[475,2,475,3],[475,6,475,7],[477,2,477,3],[477,6,477,7],[463,2,463,3],[463,6,463,8],[465,2,465,3],[465,6,465,8],[468,2,468,3],[468,6,468,8],[449,2,449,3],[449,6,449,7],[456,2,456,4],[456,6,456,8],[456,10,456,12],[458,2,458,4],[458,6,458,8],[458,10,458,12],[440,2,440,3],[440,6,440,7],[442,2,442,3],[442,6,442,7],[447,2,447,3],[447,6,447,7],[430,2,430,3],[430,6,430,8],[433,2,433,3],[433,6,433,8],[435,2,435,3],[435,6,435,8],[421,10,421,12],[423,2,423,4],[423,6,423,8],[423,10,423,12],[428,2,428,3],[428,6,428,8],[412,2,412,3],[412,6,412,7],[414,2,414,3],[414,6,414,7],[421,2,421,4],[421,6,421,8],[400,2,400,3],[400,6,400,8],[405,2,405,3],[405,6,405,7],[407,2,407,3],[407,6,407,7],[393,2,393,3],[393,6,393,8],[395,2,395,3],[395,6,395,8],[398,2,398,3],[398,6,398,8],[379,2,379,3],[379,6,379,7],[386,2,386,4],[386,6,386,8],[386,10,386,12],[388,2,388,4],[388,6,388,8],[388,10,388,12],[370,2,370,3],[370,6,370,7],[372,2,372,3],[372,6,372,7],[377,2,377,3],[377,6,377,7],[360,2,360,3],[360,6,360,8],[363,2,363,3],[363,6,363,8],[365,2,365,3],[365,6,365,8],[351,10,351,12],[353,2,353,4],[353,6,353,8],[353,10,353,12],[358,2,358,3],[358,6,358,8],[342,2,342,3],[342,6,342,7],[344,2,344,3],[344,6,344,7],[351,2,351,4],[351,6,351,8],[330,2,330,3],[330,6,330,8],[335,2,335,3],[335,6,335,7],[337,2,337,3],[337,6,337,7],[347,2,347,7],[323,2,323,3],[323,6,323,8],[325,2,325,3],[325,6,325,8],[328,2,328,3],[328,6,328,8],[316,2,316,4],[316,6,316,8],[316,10,316,12],[318,2,318,4],[318,6,318,8],[318,10,318,12],[302,2,302,3],[302,6,302,7],[307,2,307,3],[307,6,307,7],[309,2,309,3],[309,6,309,7],[293,2,293,3],[293,6,293,8],[295,2,295,3],[295,6,295,8],[300,2,300,3],[300,6,300,7],[283,2,283,4],[283,6,283,8],[283,10,283,12],[288,2,288,3],[288,6,288,8],[290,2,290,3],[290,6,290,8],[266,5,266,6],[268,5,268,6],[272,2,273,12],[281,2,281,4],[281,6,281,8],[281,10,281,12],[251,5,251,6],[253,5,253,6],[223,10,223,12],[230,2,230,3],[230,5,230,6],[230,8,230,10],[232,2,232,3],[232,5,232,6],[232,8,232,10],[2,2,2,12],[0,2,0,12],[262,5,262,6],[236,2,236,3],[236,5,236,6],[236,8,236,10],[238,2,238,3],[221,6,221,8],[221,10,221,12],[223,2,223,4],[223,6,223,8],[208,2,209,12],[215,2,215,4],[215,6,215,8],[215,10,215,12],[217,2,217,4],[217,6,217,8],[217,10,217,12],[221,2,221,4],[260,5,260,6],[238,5,238,6],[238,8,238,10],[245,5,245,6],[247,5,247,6]]}
[null,null,"KALKULATOR OPŁATY PRODUKTOWEJ ZA ROK 2021 - OPAKOWANIA"]
[]
[null,null,"WYPEŁNIJ TABELE PODŚWIETLONE NA ZIELONO"]
[]
[]
[null,null,"Dział II Tabela 5.1. Informacja o masie opakowań, w których zostały wprowadzone do obrotu produkty, masie poddanych odzyskowi i recyklingowi odpadów opakowaniowych oraz osiągniętych poziomach odzysku i recyklingu odpadów opakowaniowych"]
[]
[null,null,"1. MASA WPROWADZONYCH DO OBROTU OPAKOWAŃ"]
[]
[null,null,"A. Podlegających obowiązkowi odzysku ogółem i recyklingu ogółem:"]
[]
[null,null,"w danym roku kalendarzowym w tonach [Mg]:",null,null,null,"w roku poprzedzającym dany rok kalendarzowy w tonach [Mg]:",null,null,null,"stanowiąca podstawę do obliczenia osiągniętego poziomu w tonach [Mg]:"]
[]
[null,null,{"$f":"IF(OR(WYNIK1!$O$5=0,WYNIK1!$O$5=\"\"),0,WYNIK1!$O$5)","v":0},null,null,null,{"$f":"IF(OR(WYNIK1!$K$5=0,WYNIK1!$K$5=\"\"),0,WYNIK1!$K$5)","v":0},null,null,null,{"$f":"IF(OR(WYNIK1!$R$5=0,WYNIK1!$R$5=\"\"),0,WYNIK1!$R$5)","v":0}]
[]
[null,null,"B. Podlegających obowiązkowi recyklingu:"]
[]
[null,null,"1. TWORZYWA SZTUCZNE"]
[]
[null,null,"w danym roku kalendarzowym w tonach [Mg]:",null,null,null,"w roku poprzedzającym dany rok kalendarzowy w tonach [Mg]:",null,null,null,"stanowiąca podstawę do obliczenia osiągniętego poziomu w tonach [Mg]:"]
[]
[null,null,{"$f":"IF(OR(WYNIK1!$O$6=0,WYNIK1!$O$6=\"\"),0,WYNIK1!$O$6)","v":0},null,null,null,{"$f":"IF(OR(WYNIK1!$K$6=0,WYNIK1!$K$6=\"\"),0,WYNIK1!$K$6)","v":0},null,null,null,{"$f":"IF(OR(WYNIK1!$R$6=0,WYNIK1!$R$6=\"\"),0,WYNIK1!$R$6)","v":0}]
[]
[null,null,"2. ALUMINIUM"]
[]
[null,null,"w danym roku kalendarzowym w tonach [Mg]:",null,null,null,"w roku poprzedzającym dany rok kalendarzowy w tonach [Mg]:",null,null,null,"stanowiąca podstawę do obliczenia osiągniętego poziomu w tonach [Mg]:"]
[]
[null,null,{"$f":"IF(OR(WYNIK1!$O$7=0,WYNIK1!$O$7=\"\"),0,WYNIK1!$O$7)","v":0},null,null,null,{"$f":"IF(OR(WYNIK1!$K$7=0,WYNIK1!$K$7=\"\"),0,WYNIK1!$K$7)","v":0},null,null,null,{"$f":"IF(OR(WYNIK1!$R$7=0,WYNIK1!$R$7=\"\"),0,WYNIK1!$R$7)","v":0}]
[]
[null,null,"3. METALE- STAL, W TYM BLACHA STALOWA, ORAZ POZOSTAŁE METALE"]
[]
[null,null,"w danym roku kalendarzowym w tonach [Mg]:",null,null,null,"w roku poprzedzającym dany rok kalendarzowy w tonach [Mg]:",null,null,null,"stanowiąca podstawę do obliczenia osiągniętego poziomu w tonach [Mg]:"]
[]
[null,null,{"$f":"IF(OR(WYNIK1!$O$8=0,WYNIK1!$O$8=\"\"),0,WYNIK1!$O$8)","v":0},null,null,null,{"$f":"IF(OR(WYNIK1!$K$8=0,WYNIK1!$K$8=\"\"),0,WYNIK1!$K$8)","v":0},null,null,null,{"$f":"IF(OR(WYNIK1!$R$8=0,WYNIK1!$R$8=\"\"),0,WYNIK1!$R$8)","v":0}]
[]
[null,null,"4. PAPIER I TEKTURA"]
[]
[null,null,"w danym roku kalendarzowym w tonach [Mg]:",null,null,null,"w roku poprzedzającym dany rok kalendarzowy w tonach [Mg]:",null,null,null,"stanowiąca podstawę do obliczenia osiągniętego poziomu w tonach [Mg]:"]
[]
[null,null,{"$f":"IF(OR(WYNIK1!$O$9=0,WYNIK1!$O$9=\"\"),0,WYNIK1!$O$9)","v":0},null,null,null,{"$f":"IF(OR(WYNIK1!$K$9=0,WYNIK1!$K$9=\"\"),0,WYNIK1!$K$9)","v":0},null,null,null,{"$f":"IF(OR(WYNIK1!$R$9=0,WYNIK1!$R$9=\"\"),0,WYNIK1!$R$9)","v":0}]
[]
[null,null,"5. SZKŁO"]
[]
[null,null,"w danym roku kalendarzowym w tonach [Mg]:",null,null,null,"w roku poprzedzającym dany rok kalendarzowy w tonach [Mg]:",null,null,null,"stanowiąca podstawę do obliczenia osiągniętego poziomu w tonach [Mg]:"]
[]
[null,null,{"$f":"IF(OR(WYNIK1!$O$10=0,WYNIK1!$O$10=\"\"),0,WYNIK1!$O$10)","v":0},null,null,null,{"$f":"IF(OR(WYNIK1!$K$10=0,WYNIK1!$K$10=\"\"),0,WYNIK1!$K$10)","v":0},null,null,null,{"$f":"IF(OR(WYNIK1!$R$10=0,WYNIK1!$R$10=\"\"),0,WYNIK1!$R$10)","v":0}]
[]
[null,null,"6. DREWNO"]
[]
[null,null,"w danym roku kalendarzowym w tonach [Mg]:",null,null,null,"w roku poprzedzającym dany rok kalendarzowy w tonach [Mg]:",null,null,null,"stanowiąca podstawę do obliczenia osiągniętego poziomu w tonach [Mg]:"]
[]
[null,null,{"$f":"IF(OR(WYNIK1!$O$11=0,WYNIK1!$O$11=\"\"),0,WYNIK1!$O$11)","v":0},null,null,null,{"$f":"IF(OR(WYNIK1!$K$11=0,WYNIK1!$K$11=\"\"),0,WYNIK1!$K$11)","v":0},null,null,null,{"$f":"IF(OR(WYNIK1!$R$11=0,WYNIK1!$R$11=\"\"),0,WYNIK1!$R$11)","v":0}]
[]
[]
[null,null,"2. MASA ODPADÓW PODDANYCH ODZYSKOWI ORAZ RECYKLINGOWI"]
[]
[null,null,"A. Masa odpadów poddanych odzyskowi:"]
[]
[null,null,"ogółem w tonach [Mg]:",null,null,null,"w tym pochodzących z gosodarstw domowych w tonach [Mg]:"]
[]
[null,null,{"$f":"IF(OR(FORMULARZ!$M$35=0,FORMULARZ!$M$35=\"\"),0,FORMULARZ!$M$35)","v":0},null,null,null,0]
[]
[null,null,"B. Masa odpadów poddanych recyklingowi:"]
[]
[null,null,"ogółem w tonach [Mg]:"]
[]
[null,null,{"$f":"IF(OR(FORMULARZ!$O$35=0,FORMULARZ!$O$35=\"\"),0,FORMULARZ!$O$35)","v":0}]
[]
[null,null,"1. TWORZYWA SZTUCZNE"]
[]
[null,null,"według rodzaju materiału w tonach [Mg]:",null,null,null,"w tym pochodzących z gosodarstw domowych w tonach [Mg]:"]
[]
[null,null,{"$f":"IF(OR(FORMULARZ!$O$36=0,FORMULARZ!$O$36=\"\"),0,FORMULARZ!$O$36)","v":0},null,null,null,0]
[]
[null,null,"2. ALUMINIUM"]
[]
[null,null,"według rodzaju materiału w tonach [Mg]:",null,null,null,"w tym pochodzących z gosodarstw domowych w tonach [Mg]:"]
[]
[null,null,{"$f":"IF(OR(FORMULARZ!$O$37=0,FORMULARZ!$O$37=\"\"),0,FORMULARZ!$O$37)","v":0},null,null,null,0]
[]
[null,null,"3. METALE- STAL, W TYM BLACHA STALOWA, ORAZ POZOSTAŁE METALE"]
[]
[null,null,"według rodzaju materiału w tonach [Mg]:",null,null,null,"w tym pochodzących z gosodarstw domowych w tonach [Mg]:"]
[]
[null,null,{"$f":"IF(OR(FORMULARZ!$O$38=0,FORMULARZ!$O$38=\"\"),0,FORMULARZ!$O$38)","v":0},null,null,null,0]
[]
[null,null,"4. PAPIER I TEKTURA"]
[]
[null,null,"według rodzaju materiału w tonach [Mg]:",null,null,null,"w tym pochodzących z gosodarstw domowych w tonach [Mg]:"]
[]
[null,null,{"$f":"IF(OR(FORMULARZ!$O$39=0,FORMULARZ!$O$39=\"\"),0,FORMULARZ!$O$39)","v":0},null,null,null,0]
[]
[null,null,"5. SZKŁO"]
[]
[null,null,"według rodzaju materiału w tonach [Mg]:",null,null,null,"w tym pochodzących z gosodarstw domowych w tonach [Mg]:"]
[]
[null,null,{"$f":"IF(OR(FORMULARZ!$O$40=0,FORMULARZ!$O$40=\"\"),0,FORMULARZ!$O$40)","v":0},null,null,null,0]
[]
[null,null,"6. DREWNO"]
[]
[null,null,"według rodzaju materiału w tonach [Mg]:",null,null,null,"w tym pochodzących z gosodarstw domowych w tonach [Mg]:"]
[]
[null,null,{"$f":"IF(OR(FORMULARZ!$O$41=0,FORMULARZ!$O$41=\"\"),0,FORMULARZ!$O$41)","v":0},null,null,null,0]
[]
[]
[null,null,"3. WYMAGANY POZIOM ODZYSKU ORAZ RECYKLINGU"]
[]
[null,null,"A. Wymagany poziom odzysku:"]
[]
[null,null,"ogółem [%]:"]
[]
[null,null,61]
[]
[null,null,"B. Wymagany poziom recyklingu:"]
[]
[null,null,"ogółem [%]:"]
[]
[null,null,56]
[]
[null,null,"1. TWORZYWA SZTUCZNE"]
[]
[null,null,"według rodzaju materiału [%]:",null,null,null,"w tym pochodzących z gosodarstw domowych w tonach [%]:"]
[]
[null,null,23.5,null,null,null,0]
[]
[null,null,"2. ALUMINIUM"]
[]
[null,null,"według rodzaju materiału [%]:",null,null,null,"w tym pochodzących z gosodarstw domowych w tonach [%]:"]
[]
[null,null,51,null,null,null,0]
[]
[null,null,"3. METALE- STAL, W TYM BLACHA STALOWA, ORAZ POZOSTAŁE METALE"]
[]
[null,null,"według rodzaju materiału [%]:",null,null,null,"w tym pochodzących z gosodarstw domowych w tonach [%]:"]
[]
[null,null,51,null,null,null,0]
[]
[null,null,"4. PAPIER I TEKTURA"]
[]
[null,null,"według rodzaju materiału [%]:",null,null,null,"w tym pochodzących z gosodarstw domowych w tonach [%]:"]
[]
[null,null,61,null,null,null,0]
[]
[null,null,"5. SZKŁO"]
[]
[null,null,"według rodzaju materiału [%]:",null,null,null,"w tym pochodzących z gosodarstw domowych w tonach [%]:"]
[]
[null,null,61,null,null,null,0]
[]
[null,null,"6. DREWNO"]
[]
[null,null,"według rodzaju materiału [%]:",null,null,null,"w tym pochodzących z gosodarstw domowych w tonach [%]:"]
[]
[null,null,16,null,null,null,0]
[]
[]
[null,null,"4. OSIĄGNIĘTY POZIOM ODZYSKU ORAZ RECYKLINGU"]
[]
[null,null,"A. Osiągnięty poziom odzysku:"]
[]
[null,null,"ogółem [%]:"]
[]
[null,null,{"$f":"IF(OR(WYNIK1!$Z$6=0,WYNIK1!$Z$6=\"\"),0,WYNIK1!$Z$6)","v":0}]
[]
[null,null,"B. Osiągnięty poziom recyklingu:"]
[]
[null,null,"ogółem [%]:"]
[]
[null,null,{"$f":"IF(OR(WYNIK1!$AA$6=0,WYNIK1!$AA$6=\"\"),0,WYNIK1!$AA$6)","v":0}]
[]
[null,null,"1. TWORZYWA SZTUCZNE"]
[]
[null,null,"według rodzaju materiału [%]:",null,null,null,"w tym pochodzących z gosodarstw domowych w tonach [%]:"]
[]
[null,null,{"$f":"IF(OR(WYNIK1!$AB$6=0,WYNIK1!$AB$6=\"\"),0,WYNIK1!$AB$6)","v":0},null,null,null,0]
[]
[null,null,"2. ALUMINIUM"]
[]
[null,null,"według rodzaju materiału [%]:",null,null,null,"w tym pochodzących z gosodarstw domowych w tonach [%]:"]
[]
[null,null,{"$f":"IF(OR(WYNIK1!$AB$7=0,WYNIK1!$AB$7=\"\"),0,WYNIK1!$AB$7)","v":0},null,null,null,0]
[]
[null,null,"3. METALE- STAL, W TYM BLACHA STALOWA, ORAZ POZOSTAŁE METALE"]
[]
[null,null,"według rodzaju materiału [%]:",null,null,null,"w tym pochodzących z gosodarstw domowych w tonach [%]:"]
[]
[null,null,{"$f":"IF(OR(WYNIK1!$AB$8=0,WYNIK1!$AB$8=\"\"),0,WYNIK1!$AB$8)","v":0},null,null,null,0]
[]
[null,null,"4. PAPIER I TEKTURA"]
[]
[null,null,"według rodzaju materiału [%]:",null,null,null,"w tym pochodzących z gosodarstw domowych w tonach [%]:"]
[]
[null,null,{"$f":"IF(OR(WYNIK1!$AB$9=0,WYNIK1!$AB$9=\"\"),0,WYNIK1!$AB$9)","v":0},null,null,null,0]
[]
[null,null,"5. SZKŁO"]
[]
[null,null,"według rodzaju materiału [%]:",null,null,null,"w tym pochodzących z gosodarstw domowych w tonach [%]:"]
[]
[null,null,{"$f":"IF(OR(WYNIK1!$AB$10=0,WYNIK1!$AB$10=\"\"),0,WYNIK1!$AB$10)","v":0},null,null,null,0]
[]
[null,null,"6. DREWNO"]
[]
[null,null,"według rodzaju materiału [%]:",null,null,null,"w tym pochodzących z gosodarstw domowych w tonach [%]:"]
[]
[null,null,{"$f":"IF(OR(WYNIK1!$AB$11=0,WYNIK1!$AB$11=\"\"),0,WYNIK1!$AB$11)","v":0},null,null,null,0]
[]
[]
[]
[null,null,"Dział II Tabela 5.2. Informacja o masie opakowań wielomateriałowych, w których zostały wprowadzone do obrotu produkty, masie poddanych odzyskowi i recyklingowi odpadów po opakowaniach wielomateriałowych oraz osiągniętych poziomach odzysku i recyklingu odpadów po tych opakowaniach"]
[]
[]
[null,null,"1. MASA WPROWADZONYCH DO OBROTU OPAKOWAŃ"]
[]
[null,null,"A. Podlegających obowiązkowi odzysku ogółem i recyklingu ogółem:"]
[]
[null,null,"w danym roku kalendarzowym w tonach [Mg]:",null,null,null,"w roku poprzedzającym dany rok kalendarzowy w tonach [Mg]:",null,null,null,"stanowiąca podstawę do obliczenia osiągniętego poziomu w tonach [Mg]:"]
[]
[null,null,{"$f":"IF(OR(WYNIK1!$O$13=0,WYNIK1!$O$13=\"\"),0,WYNIK1!$O$13)","v":0},null,null,null,{"$f":"IF(OR(WYNIK1!$K$13=0,WYNIK1!$K$13=\"\"),0,WYNIK1!$K$13)","v":0},null,null,null,{"$f":"IF(OR(WYNIK1!$R$13=0,WYNIK1!$R$13=\"\"),0,WYNIK1!$R$13)","v":0}]
[]
[null,null,"B. Podlegających obowiązkowi recyklingu:"]
[]
[null,null,"w danym roku kalendarzowym w tonach [Mg]:",null,null,null,"w roku poprzedzającym dany rok kalendarzowy w tonach [Mg]:",null,null,null,"stanowiąca podstawę do obliczenia osiągniętego poziomu w tonach [Mg]:"]
[]
[null,null,{"$f":"IF(OR(WYNIK1!$O$13=0,WYNIK1!$O$13=\"\"),0,WYNIK1!$O$13)","v":0},null,null,null,{"$f":"IF(OR(WYNIK1!$K$13=0,WYNIK1!$K$13=\"\"),0,WYNIK1!$K$13)","v":0},null,null,null,{"$f":"IF(OR(WYNIK1!$R$13=0,WYNIK1!$R$13=\"\"),0,WYNIK1!$R$13)","v":0}]
[]
[]
[null,null,"2. MASA ODPADÓW PODDANYCH ODZYSKOWI ORAZ RECYKLINGOWI"]
[]
[null,null,"A. Masa odpadów poddanych odzyskowi:"]
[]
[null,null,"ogółem w tonach [Mg]:",null,null,"według rodzaju materiału w tonach [Mg]:",null,null,"w tym pochodzących z gosodarstw domowych w tonach [Mg]:"]
[]
[null,null,{"$f":"IF(OR(FORMULARZ!$M$43=0,FORMULARZ!$M$43=\"\"),0,FORMULARZ!$M$43)","v":0},null,null,{"$f":"IF(OR(FORMULARZ!$M$43=0,FORMULARZ!$M$43=\"\"),0,FORMULARZ!$M$43)","v":0},null,null,0]
[]
[null,null,"B. Masa odpadów poddanych recyklingowi:"]
[]
[null,null,"ogółem w tonach [Mg]:",null,null,"według rodzaju materiału w tonach [Mg]:",null,null,"w tym pochodzących z gosodarstw domowych w tonach [Mg]:"]
[]
[null,null,{"$f":"IF(OR(FORMULARZ!$O$43=0,FORMULARZ!$O$43=\"\"),0,FORMULARZ!$O$43)","v":0},null,null,{"$f":"IF(OR(FORMULARZ!$O$43=0,FORMULARZ!$O$43=\"\"),0,FORMULARZ!$O$43)","v":0},null,null,0]
[]
[]
[null,null,"3. WYMAGANY POZIOM ODZYSKU ORAZ RECYKLINGU"]
[]
[null,null,"A. Wymagany poziom odzysku:"]
[]
[null,null,"ogółem [%]:",null,null,"według rodzaju materiału [%]:"]
[]
[null,null,61,null,null,0]
[]
[null,null,"B. Wymagany poziom recyklingu:"]
[]
[null,null,"ogółem [%]:",null,null,"według rodzaju materiału [%]:"]
[]
[null,null,56,null,null,44]
[]
[]
[null,null,"4. OSIĄGNIĘTY POZIOM ODZYSKU ORAZ RECYKLINGU"]
[]
[null,null,"A. Osiągnięty poziom odzysku:"]
[]
[null,null,"ogółem [%]:",null,null,"według rodzaju materiału [%]:"]
[]
[null,null,{"$f":"IF(OR(WYNIK1!$Z$13=0,WYNIK1!$Z$13=\"\"),0,WYNIK1!$Z$13)","v":0},null,null,0,{"$f":"IF(OR(WYNIK1!$Z$13=0,WYNIK1!$Z$13=\"\"),0,WYNIK1!$Z$13)","v":0}]
[]
[null,null,"B. Osiągnięty poziom recyklingu:"]
[]
[null,null,"ogółem [%]:",null,null,"według rodzaju materiału [%]:"]
[]
[null,null,{"$f":"IF(OR(WYNIK1!$AA$13=0,WYNIK1!$AA$13=\"\"),0,WYNIK1!$AA$13)","v":0},null,null,{"$f":"IF(OR(WYNIK1!$AB$13=0,WYNIK1!$AB$13=\"\"),0,WYNIK1!$AB$13)","v":0}]
[]
[]
[]
[null,null,"Dział II Tabela 5.3.  Informacja o opakowaniach po środkach niebezpiecznych innych niż środki ochrony roślin"]
[]
[]
[null,null,"Rodzaj opakowania, z którego powstał odpad"]
[]
[null,null,"1. TWORZYWA SZTUCZNE",null,null,null,null,null,null,null,null,null,null,{"$f":"IF(K284=0,\"NIE\",\"TAK\")","v":"NIE"}]
[]
[null,null,"Masa wprowadzonych do obrotu opakowań podlegających obowiązkowi odzysku i recyklingu"]
[]
[null,null,"w danym roku kalendarzowym w tonach [Mg]:",null,null,null,"w roku poprzedzającym dany rok kalendarzowy w tonach [Mg]:",null,null,null,"stanowiąca podstawę do obliczenia osiągniętego poziomu w tonach [Mg]:"]
[]
[null,null,{"$f":"IF(OR(WYNIK1!$O$16=0,WYNIK1!$O$16=\"\"),0,WYNIK1!$O$16)","v":0},null,null,null,{"$f":"IF(OR(WYNIK1!$K$16=0,WYNIK1!$K$16=\"\"),0,WYNIK1!$K$16)","v":0},null,null,null,{"$f":"IF(OR(WYNIK1!$R$16=0,WYNIK1!$R$16=\"\"),0,WYNIK1!$R$16)","v":0}]
[]
[]
[null,null,"Masa odpadów poddanych"]
[]
[null,null,"odzyskowi według rodzaju materiału w tonach [Mg]:",null,null,null,"odzyskowi w tym pochodzących z gosodarstw domowych w tonach [Mg]:"]
[]
[null,null,{"$f":"IF(OR(FORMULARZ!$M$53=0,FORMULARZ!$M$53=\"\"),0,FORMULARZ!$M$53)","v":0},null,null,null,0]
[]
[]
[null,null,"recyklingowi według rodzaju materiału w tonach [Mg]:",null,null,null,"recyklingowi w tym pochodzących z gosodarstw domowych w tonach [Mg]:"]
[]
[null,null,{"$f":"IF(OR(FORMULARZ!$O$53=0,FORMULARZ!$O$53=\"\"),0,FORMULARZ!$O$53)","v":0},null,null,null,0]
[]
[]
[null,null,"Wymagany poziom"]
[]
[null,null,"odzysku według rodzaju materiału w tonach [Mg]:",null,null,null,"recyklingu według rodzaju materiału w tonach [Mg]:"]
[]
[null,null,53,null,null,null,34]
[]
[]
[null,null,"Osiągnięty poziom"]
[]
[null,null,"odzysku według rodzaju materiału w tonach [Mg]:",null,null,null,"recyklingu według rodzaju materiału w tonach [Mg]:"]
[]
[null,null,{"$f":"IF(OR(WYNIK1!$Z$16=0,WYNIK1!$Z$16=\"\"),0,WYNIK1!$Z$16)","v":0},null,null,null,{"$f":"IF(OR(WYNIK1!$AB$16=0,WYNIK1!$AB$16=\"\"),0,WYNIK1!$AB$16)","v":0}]
[]
[]
[null,null,"2. ALUMINIUM",null,null,null,null,null,null,null,null,null,null,{"$f":"IF(K319=0,\"NIE\",\"TAK\")","v":"NIE"}]
[]
[null,null,"Masa wprowadzonych do obrotu opakowań podlegających obowiązkowi odzysku i recyklingu"]
[]
[null,null,"w danym roku kalendarzowym w tonach [Mg]:",null,null,null,"w roku poprzedzającym dany rok kalendarzowy w tonach [Mg]:",null,null,null,"stanowiąca podstawę do obliczenia osiągniętego poziomu w tonach [Mg]:"]
[]
[null,null,{"$f":"IF(OR(WYNIK1!$O$17=0,WYNIK1!$O$17=\"\"),0,WYNIK1!$O$17)","v":0},null,null,null,{"$f":"IF(OR(WYNIK1!$K$17=0,WYNIK1!$K$17=\"\"),0,WYNIK1!$K$17)","v":0},null,null,null,{"$f":"IF(OR(WYNIK1!$R$17=0,WYNIK1!$R$17=\"\"),0,WYNIK1!$R$17)","v":0}]
[]
[]
[null,null,"Masa odpadów poddanych"]
[]
[null,null,"odzyskowi według rodzaju materiału w tonach [Mg]:",null,null,null,"odzyskowi w tym pochodzących z gosodarstw domowych w tonach [Mg]:"]
[]
[null,null,{"$f":"IF(OR(FORMULARZ!$M$54=0,FORMULARZ!$M$54=\"\"),0,FORMULARZ!$M$54)","v":0},null,null,null,0]
[]
[]
[null,null,"recyklingowi według rodzaju materiału w tonach [Mg]:",null,null,null,"recyklingowi w tym pochodzących z gosodarstw domowych w tonach [Mg]:"]
[]
[null,null,{"$f":"IF(OR(FORMULARZ!$O$54=0,FORMULARZ!$O$54=\"\"),0,FORMULARZ!$O$54)","v":0},null,null,null,0]
[]
[]
[null,null,"Wymagany poziom"]
[]
[null,null,"odzysku według rodzaju materiału w tonach [Mg]:",null,null,null,"recyklingu według rodzaju materiału w tonach [Mg]:"]
[]
[null,null,53,null,null,null,34]
[]
[]
[null,null,"Osiągnięty poziom"]
[]
[null,null,"odzysku według rodzaju materiału w tonach [Mg]:",null,null,null,"recyklingu według rodzaju materiału w tonach [Mg]:"]
[]
[null,null,{"$f":"IF(OR(WYNIK1!$Z$17=0,WYNIK1!$Z$17=\"\"),0,WYNIK1!$Z$17)","v":0},null,null,null,{"$f":"IF(OR(WYNIK1!$AB$17=0,WYNIK1!$AB$17=\"\"),0,WYNIK1!$AB$17)","v":0}]
[]
[]
[null,null,"3. METALE- STAL, W TYM BLACHA STALOWA, ORAZ POZOSTAŁE METALE",null,null,null,null,null,null,null,null,null,null,{"$f":"IF(K354=0,\"NIE\",\"TAK\")","v":"NIE"}]
[]
[null,null,"Masa wprowadzonych do obrotu opakowań podlegających obowiązkowi odzysku i recyklingu"]
[]
[null,null,"w danym roku kalendarzowym w tonach [Mg]:",null,null,null,"w roku poprzedzającym dany rok kalendarzowy w tonach [Mg]:",null,null,null,"stanowiąca podstawę do obliczenia osiągniętego poziomu w tonach [Mg]:"]
[]
[null,null,{"$f":"IF(OR(WYNIK1!$O$18=0,WYNIK1!$O$18=\"\"),0,WYNIK1!$O$18)","v":0},null,null,null,{"$f":"IF(OR(WYNIK1!$K$18=0,WYNIK1!$K$18=\"\"),0,WYNIK1!$K$18)","v":0},null,null,null,{"$f":"IF(OR(WYNIK1!$R$18=0,WYNIK1!$R$18=\"\"),0,WYNIK1!$R$18)","v":0}]
[]
[]
[null,null,"Masa odpadów poddanych"]
[]
[null,null,"odzyskowi według rodzaju materiału w tonach [Mg]:",null,null,null,"odzyskowi w tym pochodzących z gosodarstw domowych w tonach [Mg]:"]
[]
[null,null,{"$f":"IF(OR(FORMULARZ!$M$55=0,FORMULARZ!$M$55=\"\"),0,FORMULARZ!$M$55)","v":0},null,null,null,0]
[]
[]
[null,null,"recyklingowi według rodzaju materiału w tonach [Mg]:",null,null,null,"recyklingowi w tym pochodzących z gosodarstw domowych w tonach [Mg]:"]
[]
[null,null,{"$f":"IF(OR(FORMULARZ!$O$55=0,FORMULARZ!$O$55=\"\"),0,FORMULARZ!$O$55)","v":0},null,null,null,0]
[]
[]
[null,null,"Wymagany poziom"]
[]
[null,null,"odzysku według rodzaju materiału w tonach [Mg]:",null,null,null,"recyklingu według rodzaju materiału w tonach [Mg]:"]
[]
[null,null,53,null,null,null,34]
[]
[]
[null,null,"Osiągnięty poziom"]
[]
[null,null,"odzysku według rodzaju materiału w tonach [Mg]:",null,null,null,"recyklingu według rodzaju materiału w tonach [Mg]:"]
[]
[null,null,{"$f":"IF(OR(WYNIK1!$Z$18=0,WYNIK1!$Z$18=\"\"),0,WYNIK1!$Z$18)","v":0},null,null,null,{"$f":"IF(OR(WYNIK1!$AB$18=0,WYNIK1!$AB$18=\"\"),0,WYNIK1!$AB$18)","v":0}]
[]
[]
[null,null,"4. PAPIER I TEKTURA",null,null,null,null,null,null,null,null,null,null,{"$f":"IF(K389=0,\"NIE\",\"TAK\")","v":"NIE"}]
[]
[null,null,"Masa wprowadzonych do obrotu opakowań podlegających obowiązkowi odzysku i recyklingu"]
[]
[null,null,"w danym roku kalendarzowym w tonach [Mg]:",null,null,null,"w roku poprzedzającym dany rok kalendarzowy w tonach [Mg]:",null,null,null,"stanowiąca podstawę do obliczenia osiągniętego poziomu w tonach [Mg]:"]
[]
[null,null,{"$f":"IF(OR(WYNIK1!$O$19=0,WYNIK1!$O$19=\"\"),0,WYNIK1!$O$19)","v":0},null,null,null,{"$f":"IF(OR(WYNIK1!$K$19=0,WYNIK1!$K$19=\"\"),0,WYNIK1!$K$19)","v":0},null,null,null,{"$f":"IF(OR(WYNIK1!$R$19=0,WYNIK1!$R$19=\"\"),0,WYNIK1!$R$19)","v":0}]
[]
[]
[null,null,"Masa odpadów poddanych"]
[]
[null,null,"odzyskowi według rodzaju materiału w tonach [Mg]:",null,null,null,"odzyskowi w tym pochodzących z gosodarstw domowych w tonach [Mg]:"]
[]
[null,null,{"$f":"IF(OR(FORMULARZ!$M$56=0,FORMULARZ!$M$56=\"\"),0,FORMULARZ!$M$56)","v":0},null,null,null,0]
[]
[]
[null,null,"recyklingowi według rodzaju materiału w tonach [Mg]:",null,null,null,"recyklingowi w tym pochodzących z gosodarstw domowych w tonach [Mg]:"]
[]
[null,null,{"$f":"IF(OR(FORMULARZ!$O$56=0,FORMULARZ!$O$56=\"\"),0,FORMULARZ!$O$56)","v":0},null,null,null,0]
[]
[]
[null,null,"Wymagany poziom"]
[]
[null,null,"odzysku według rodzaju materiału w tonach [Mg]:",null,null,null,"recyklingu według rodzaju materiału w tonach [Mg]:"]
[]
[null,null,53,null,null,null,34]
[]
[]
[null,null,"Osiągnięty poziom"]
[]
[null,null,"odzysku według rodzaju materiału w tonach [Mg]:",null,null,null,"recyklingu według rodzaju materiału w tonach [Mg]:"]
[]
[null,null,{"$f":"IF(OR(WYNIK1!$Z$19=0,WYNIK1!$Z$19=\"\"),0,WYNIK1!$Z$19)","v":0},null,null,null,{"$f":"IF(OR(WYNIK1!$AB$19=0,WYNIK1!$AB$19=\"\"),0,WYNIK1!$AB$19)","v":0}]
[]
[]
[null,null,"5. SZKŁO",null,null,null,null,null,null,null,null,null,null,{"$f":"IF(K424=0,\"NIE\",\"TAK\")","v":"NIE"}]
[]
[null,null,"Masa wprowadzonych do obrotu opakowań podlegających obowiązkowi odzysku i recyklingu"]
[]
[null,null,"w danym roku kalendarzowym w tonach [Mg]:",null,null,null,"w roku poprzedzającym dany rok kalendarzowy w tonach [Mg]:",null,null,null,"stanowiąca podstawę do obliczenia osiągniętego poziomu w tonach [Mg]:"]
[]
[null,null,{"$f":"IF(OR(WYNIK1!$O$20=0,WYNIK1!$O$20=\"\"),0,WYNIK1!$O$20)","v":0},null,null,null,{"$f":"IF(OR(WYNIK1!$K$20=0,WYNIK1!$K$20=\"\"),0,WYNIK1!$K$20)","v":0},null,null,null,{"$f":"IF(OR(WYNIK1!$R$20=0,WYNIK1!$R$20=\"\"),0,WYNIK1!$R$20)","v":0}]
[]
[]
[null,null,"Masa odpadów poddanych"]
[]
[null,null,"odzyskowi według rodzaju materiału w tonach [Mg]:",null,null,null,"odzyskowi w tym pochodzących z gosodarstw domowych w tonach [Mg]:"]
[]
[null,null,{"$f":"IF(OR(FORMULARZ!$M$57=0,FORMULARZ!$M$57=\"\"),0,FORMULARZ!$M$57)","v":0},null,null,null,0]
[]
[]
[null,null,"recyklingowi według rodzaju materiału w tonach [Mg]:",null,null,null,"recyklingowi w tym pochodzących z gosodarstw domowych w tonach [Mg]:"]
[]
[null,null,{"$f":"IF(OR(FORMULARZ!$O$57=\"\",FORMULARZ!$O$57=0),0,FORMULARZ!$O$57)","v":0},null,null,null,0]
[]
[]
[null,null,"Wymagany poziom"]
[]
[null,null,"odzysku według rodzaju materiału w tonach [Mg]:",null,null,null,"recyklingu według rodzaju materiału w tonach [Mg]:"]
[]
[null,null,53,null,null,null,34]
[]
[]
[null,null,"Osiągnięty poziom"]
[]
[null,null,"odzysku według rodzaju materiału w tonach [Mg]:",null,null,null,"recyklingu według rodzaju materiału w tonach [Mg]:"]
[]
[null,null,{"$f":"IF(OR(WYNIK1!$Z$20=0,WYNIK1!$Z$20=\"\"),0,WYNIK1!$Z$20)","v":0},null,null,null,{"$f":"IF(OR(WYNIK1!$AB$20=0,WYNIK1!$AB$20=\"\"),0,WYNIK1!$AB$20)","v":0}]
[]
[]
[null,null,"6. DREWNO",null,null,null,null,null,null,null,null,null,null,{"$f":"IF(K459=0,\"NIE\",\"TAK\")","v":"NIE"}]
[]
[null,null,"Masa wprowadzonych do obrotu opakowań podlegających obowiązkowi odzysku i recyklingu"]
[]
[null,null,"w danym roku kalendarzowym w tonach [Mg]:",null,null,null,"w roku poprzedzającym dany rok kalendarzowy w tonach [Mg]:",null,null,null,"stanowiąca podstawę do obliczenia osiągniętego poziomu w tonach [Mg]:"]
[]
[null,null,{"$f":"IF(OR(WYNIK1!$O$21=0,WYNIK1!$O$21=\"\"),0,WYNIK1!$O$21)","v":0},null,null,null,{"$f":"IF(OR(WYNIK1!$K$21=0,WYNIK1!$K$21=\"\"),0,WYNIK1!$K$21)","v":0},null,null,null,{"$f":"IF(OR(WYNIK1!$R$21=0,WYNIK1!$R$21=\"\"),0,WYNIK1!$R$21)","v":0}]
[]
[]
[null,null,"Masa odpadów poddanych"]
[]
[null,null,"odzyskowi według rodzaju materiału w tonach [Mg]:",null,null,null,"odzyskowi w tym pochodzących z gosodarstw domowych w tonach [Mg]:"]
[]
[null,null,{"$f":"IF(OR(FORMULARZ!$M$58=0,FORMULARZ!$M$58=\"\"),0,FORMULARZ!$M$58)","v":0},null,null,null,0]
[]
[]
[null,null,"recyklingowi według rodzaju materiału w tonach [Mg]:",null,null,null,"recyklingowi w tym pochodzących z gosodarstw domowych w tonach [Mg]:"]
[]
[null,null,{"$f":"IF(OR(FORMULARZ!$O$58=0,FORMULARZ!$O$58=\"\"),0,FORMULARZ!$O$58)","v":0},null,null,null,0]
[]
[]
[null,null,"Wymagany poziom"]
[]
[null,null,"odzysku według rodzaju materiału w tonach [Mg]:",null,null,null,"recyklingu według rodzaju materiału w tonach [Mg]:"]
[]
[null,null,53,null,null,null,34]
[]
[]
[null,null,"Osiągnięty poziom"]
[]
[null,null,"odzysku według rodzaju materiału w tonach [Mg]:",null,null,null,"recyklingu według rodzaju materiału w tonach [Mg]:"]
[]
[null,null,{"$f":"IF(OR(WYNIK1!$Z$21=0,WYNIK1!$Z$21=\"\"),0,WYNIK1!$Z$21)","v":0},null,null,null,{"$f":"IF(OR(WYNIK1!$AB$21=0,WYNIK1!$AB$21=\"\"),0,WYNIK1!$AB$21)","v":0}]
[]
[]
[null,null,"7. WIELOMATERIAŁOWE",null,null,null,null,null,null,null,null,null,null,{"$f":"IF(K494=0,\"NIE\",\"TAK\")","v":"NIE"}]
[]
[null,null,"Masa wprowadzonych do obrotu opakowań podlegających obowiązkowi odzysku i recyklingu"]
[]
[null,null,"w danym roku kalendarzowym w tonach [Mg]:",null,null,null,"w roku poprzedzającym dany rok kalendarzowy w tonach [Mg]:",null,null,null,"stanowiąca podstawę do obliczenia osiągniętego poziomu w tonach [Mg]:"]
[]
[null,null,{"$f":"IF(OR(WYNIK1!$O$22=0,WYNIK1!$O$22=\"\"),0,WYNIK1!$O$22)","v":0},null,null,null,{"$f":"IF(OR(WYNIK1!$K$22=0,WYNIK1!$K$22=\"\"),0,WYNIK1!$K$22)","v":0},null,null,null,{"$f":"IF(OR(WYNIK1!$R$22=0,WYNIK1!$R$22=\"\"),0,WYNIK1!$R$22)","v":0}]
[]
[]
[null,null,"Masa odpadów poddanych"]
[]
[null,null,"odzyskowi według rodzaju materiału w tonach [Mg]:",null,null,null,"odzyskowi w tym pochodzących z gosodarstw domowych w tonach [Mg]:"]
[]
[null,null,{"$f":"IF(OR(FORMULARZ!$M$59=0,FORMULARZ!$M$59=\"\"),0,FORMULARZ!$M$59)","v":0},null,null,null,0]
[]
[]
[null,null,"recyklingowi według rodzaju materiału w tonach [Mg]:",null,null,null,"recyklingowi w tym pochodzących z gosodarstw domowych w tonach [Mg]:"]
[]
[null,null,{"$f":"IF(OR(FORMULARZ!$O$59=0,FORMULARZ!$O$59=\"\"),0,FORMULARZ!$O$59)","v":0},null,null,null,0]
[]
[]
[null,null,"Wymagany poziom"]
[]
[null,null,"odzysku według rodzaju materiału w tonach [Mg]:",null,null,null,"recyklingu według rodzaju materiału w tonach [Mg]:"]
[]
[null,null,53,null,null,null,34]
[]
[]
[null,null,"Osiągnięty poziom"]
[]
[null,null,"odzysku według rodzaju materiału w tonach [Mg]:",null,null,null,"recyklingu według rodzaju materiału w tonach [Mg]:"]
[]
[null,null,{"$f":"IF(OR(WYNIK1!$Z$22=0,WYNIK1!$Z$22=\"\"),0,WYNIK1!$Z$22)","v":0},null,null,null,{"$f":"IF(OR(WYNIK1!$AB$22=0,WYNIK1!$AB$22=\"\"),0,WYNIK1!$AB$22)","v":0}]
[]
[]
[null,null,"8. POZOSTAŁE",null,null,null,null,null,null,null,null,null,null,{"$f":"IF(K529=0,\"NIE\",\"TAK\")","v":"NIE"}]
[]
[null,null,"Masa wprowadzonych do obrotu opakowań podlegających obowiązkowi odzysku i recyklingu"]
[]
[null,null,"w danym roku kalendarzowym w tonach [Mg]:",null,null,null,"w roku poprzedzającym dany rok kalendarzowy w tonach [Mg]:",null,null,null,"stanowiąca podstawę do obliczenia osiągniętego poziomu w tonach [Mg]:"]
[]
[null,null,{"$f":"IF(OR(WYNIK1!$O$23=0,WYNIK1!$O$23=\"\"),0,WYNIK1!$O$23)","v":0},null,null,null,{"$f":"IF(OR(WYNIK1!$K$23=0,WYNIK1!$K$23=\"\"),0,WYNIK1!$K$23)","v":0},null,null,null,{"$f":"IF(OR(WYNIK1!$R$23=0,WYNIK1!$R$23=\"\"),0,WYNIK1!$R$23)","v":0}]
[]
[]
[null,null,"Masa odpadów poddanych"]
[]
[null,null,"odzyskowi według rodzaju materiału w tonach [Mg]:",null,null,null,"odzyskowi w tym pochodzących z gosodarstw domowych w tonach [Mg]:"]
[]
[null,null,{"$f":"IF(OR(FORMULARZ!$M$60=0,FORMULARZ!$M$60=\"\"),0,FORMULARZ!$M$60)","v":0},null,null,null,0]
[]
[]
[null,null,"recyklingowi według rodzaju materiału w tonach [Mg]:",null,null,null,"recyklingowi w tym pochodzących z gosodarstw domowych w tonach [Mg]:"]
[]
[null,null,{"$f":"IF(OR(FORMULARZ!$O$60=0,FORMULARZ!$O$60=\"\"),0,FORMULARZ!$O$60)","v":0},null,null,null,0]
[]
[]
[null,null,"Wymagany poziom"]
[]
[null,null,"odzysku według rodzaju materiału w tonach [Mg]:",null,null,null,"recyklingu według rodzaju materiału w tonach [Mg]:"]
[]
[null,null,53,null,null,null,34]
[]
[]
[null,null,"Osiągnięty poziom"]
[]
[null,null,"odzysku według rodzaju materiału w tonach [Mg]:",null,null,null,"recyklingu według rodzaju materiału w tonach [Mg]:"]
[]
[null,null,{"$f":"IF(OR(WYNIK1!$Z$23=0,WYNIK1!$Z$23=\"\"),0,WYNIK1!$Z$23)","v":0},null,null,null,{"$f":"IF(OR(WYNIK1!$AB$262=0,WYNIK1!$AB$262),0,WYNIK1!$AB$262)","v":0}]
[]
[]
[]
[null,null,"Dział II  Tabela 5.4. Informacja o opakowaniach po środkach niebezpiecznych będących środkami ochrony roślin"]
[]
[]
[null,null,"Rodzaj opakowania, z którego powstał odpad"]
[]
[null,null,"1. TWORZYWA SZTUCZNE",null,null,null,null,null,null,null,null,null,null,{"$f":"IF(K570=0,\"NIE\",\"TAK\")","v":"NIE"}]
[]
[null,null,"Masa wprowadzonych do obrotu opakowań podlegających obowiązkowi odzysku i recyklingu"]
[]
[null,null,"w danym roku kalendarzowym w tonach [Mg]:",null,null,null,"w roku poprzedzającym dany rok kalendarzowy w tonach [Mg]:",null,null,null,"stanowiąca podstawę do obliczenia osiągniętego poziomu w tonach [Mg]:"]
[]
[null,null,{"$f":"IF(OR(WYNIK1!$O$26=0,WYNIK1!$O$26=\"\"),0,WYNIK1!$O$26)","v":0},null,null,null,{"$f":"IF(OR(WYNIK1!$K$26=0,WYNIK1!$K$26=\"\"),0,WYNIK1!$K$26)","v":0},null,null,null,{"$f":"IF(OR(WYNIK1!$R$26=0,WYNIK1!$R$26=\"\"),0,WYNIK1!$R$26)","v":0}]
[]
[]
[null,null,"Masa odpadów poddanych"]
[]
[null,null,"odzyskowi według rodzaju materiału w tonach [Mg]:",null,null,null,"odzyskowi w tym pochodzących z gosodarstw domowych w tonach [Mg]:"]
[]
[null,null,{"$f":"IF(OR(FORMULARZ!$M$62=0,FORMULARZ!$M$62=\"\"),0,FORMULARZ!$M$62)","v":0},null,null,null,0]
[]
[null,null,"recyklingowi według rodzaju materiału w tonach [Mg]:",null,null,null,"recyklingowi w tym pochodzących z gosodarstw domowych w tonach [Mg]:"]
[]
[null,null,{"$f":"IF(OR(FORMULARZ!$O$62=0,FORMULARZ!$O$62=\"\"),0,FORMULARZ!$O$62)","v":0},null,null,null,0]
[]
[null,null,"Wymagany poziom"]
[]
[null,null,"odzysku według rodzaju materiału w tonach [Mg]:",null,null,null,"recyklingu według rodzaju materiału w tonach [Mg]:"]
[]
[null,null,53,null,null,null,34]
[]
[null,null,"Osiągnięty poziom"]
[]
[null,null,"odzysku według rodzaju materiału w tonach [Mg]:",null,null,null,"recyklingu według rodzaju materiału w tonach [Mg]:"]
[]
[null,null,{"$f":"IF(OR(WYNIK1!$Z$26=0,WYNIK1!$Z$26=\"\"),0,WYNIK1!$Z$26)","v":0},null,null,null,{"$f":"IF(OR(WYNIK1!$AB$26=0,WYNIK1!$AB$26=\"\"),0,WYNIK1!$AB$26)","v":0}]
[]
[null,null,"2. ALUMINIUM",null,null,null,null,null,null,null,null,null,null,{"$f":"IF(K601=0,\"NIE\",\"TAK\")","v":"NIE"}]
[]
[null,null,"Masa wprowadzonych do obrotu opakowań podlegających obowiązkowi odzysku i recyklingu"]
[]
[null,null,"w danym roku kalendarzowym w tonach [Mg]:",null,null,null,"w roku poprzedzającym dany rok kalendarzowy w tonach [Mg]:",null,null,null,"stanowiąca podstawę do obliczenia osiągniętego poziomu w tonach [Mg]:"]
[]
[null,null,{"$f":"IF(OR(WYNIK1!$O$27=0,WYNIK1!$O$27=\"\"),0,WYNIK1!$O$27)","v":0},null,null,null,{"$f":"IF(OR(WYNIK1!$K$27=0,WYNIK1!$K$27=\"\"),0,WYNIK1!$K$27)","v":0},null,null,null,{"$f":"IF(OR(WYNIK1!$R$27=0,WYNIK1!$R$27=\"\"),0,WYNIK1!$R$27)","v":0}]
[]
[null,null,"Masa odpadów poddanych"]
[]
[null,null,"odzyskowi według rodzaju materiału w tonach [Mg]:",null,null,null,"odzyskowi w tym pochodzących z gosodarstw domowych w tonach [Mg]:"]
[]
[null,null,{"$f":"IF(OR(FORMULARZ!$M$63=0,FORMULARZ!$M$63=\"\"),0,FORMULARZ!$M$63)","v":0},null,null,null,0]
[]
[null,null,"recyklingowi według rodzaju materiału w tonach [Mg]:",null,null,null,"recyklingowi w tym pochodzących z gosodarstw domowych w tonach [Mg]:"]
[]
[null,null,{"$f":"IF(OR(FORMULARZ!$O$63=0,FORMULARZ!$O$63=\"\"),0,FORMULARZ!$O$63)","v":0},null,null,null,0]
[]
[null,null,"Wymagany poziom"]
[]
[null,null,"odzysku według rodzaju materiału w tonach [Mg]:",null,null,null,"recyklingu według rodzaju materiału w tonach [Mg]:"]
[]
[null,null,53,null,null,null,34]
[]
[null,null,"Osiągnięty poziom"]
[]
[null,null,"odzysku według rodzaju materiału w tonach [Mg]:",null,null,null,"recyklingu według rodzaju materiału w tonach [Mg]:"]
[]
[null,null,{"$f":"IF(OR(WYNIK1!$Z$27=0,WYNIK1!$Z$27=\"\"),0,WYNIK1!$Z$27)","v":0},null,null,null,{"$f":"IF(OR(WYNIK1!$AB$27=0,WYNIK1!$AB$27=\"\"),0,WYNIK1!$AB$27)","v":0}]
[]
[null,null,"3. METALE- STAL, W TYM BLACHA STALOWA, ORAZ POZOSTAŁE METALE",null,null,null,null,null,null,null,null,null,null,{"$f":"IF(K631=0,\"NIE\",\"TAK\")","v":"NIE"}]
[]
[null,null,"Masa wprowadzonych do obrotu opakowań podlegających obowiązkowi odzysku i recyklingu"]
[]
[null,null,"w danym roku kalendarzowym w tonach [Mg]:",null,null,null,"w roku poprzedzającym dany rok kalendarzowy w tonach [Mg]:",null,null,null,"stanowiąca podstawę do obliczenia osiągniętego poziomu w tonach [Mg]:"]
[]
[null,null,{"$f":"IF(OR(WYNIK1!$O$28=0,WYNIK1!$O$28=\"\"),0,WYNIK1!$O$28)","v":0},null,null,null,{"$f":"IF(OR(WYNIK1!$K$28=0,WYNIK1!$K$28=\"\"),0,WYNIK1!$K$28)","v":0},null,null,null,{"$f":"IF(OR(WYNIK1!$R$28=0,WYNIK1!$R$28=\"\"),0,WYNIK1!$R$28)","v":0}]
[]
[null,null,"Masa odpadów poddanych"]
[]
[null,null,"odzyskowi według rodzaju materiału w tonach [Mg]:",null,null,null,"odzyskowi w tym pochodzących z gosodarstw domowych w tonach [Mg]:"]
[]
[null,null,{"$f":"IF(OR(FORMULARZ!$M$64=0,FORMULARZ!$M$64=\"\"),0,FORMULARZ!$M$64)","v":0},null,null,null,0]
[]
[null,null,"recyklingowi według rodzaju materiału w tonach [Mg]:",null,null,null,"recyklingowi w tym pochodzących z gosodarstw domowych w tonach [Mg]:"]
[]
[null,null,{"$f":"IF(OR(FORMULARZ!$O$64=0,FORMULARZ!$O$64=\"\"),0,FORMULARZ!$O$64)","v":0},null,null,null,0]
[]
[null,null,"Wymagany poziom"]
[]
[null,null,"odzysku według rodzaju materiału w tonach [Mg]:",null,null,null,"recyklingu według rodzaju materiału w tonach [Mg]:"]
[]
[null,null,53,null,null,null,34]
[]
[null,null,"Osiągnięty poziom"]
[]
[null,null,"odzysku według rodzaju materiału w tonach [Mg]:",null,null,null,"recyklingu według rodzaju materiału w tonach [Mg]:"]
[]
[null,null,{"$f":"IF(OR(WYNIK1!$Z$28=0,WYNIK1!$Z$28=\"\"),0,WYNIK1!$Z$28)","v":0},null,null,null,{"$f":"IF(OR(WYNIK1!$AB$19=0,WYNIK1!$AB$19=\"\"),0,WYNIK1!$AB$19)","v":0}]
[]
[null,null,"4. PAPIER I TEKTURA",null,null,null,null,null,null,null,null,null,null,{"$f":"IF(K661=0,\"NIE\",\"TAK\")","v":"NIE"}]
[]
[null,null,"Masa wprowadzonych do obrotu opakowań podlegających obowiązkowi odzysku i recyklingu"]
[]
[null,null,"w danym roku kalendarzowym w tonach [Mg]:",null,null,null,"w roku poprzedzającym dany rok kalendarzowy w tonach [Mg]:",null,null,null,"stanowiąca podstawę do obliczenia osiągniętego poziomu w tonach [Mg]:"]
[]
[null,null,{"$f":"IF(OR(WYNIK1!$O$29=0,WYNIK1!$O$29=\"\"),0,WYNIK1!$O$29)","v":0},null,null,null,{"$f":"IF(OR(WYNIK1!$K$29=0,WYNIK1!$K$29=\"\"),0,WYNIK1!$K$29)","v":0},null,null,null,{"$f":"IF(OR(WYNIK1!$R$29=0,WYNIK1!$R$29=\"\"),0,WYNIK1!$R$29)","v":0}]
[]
[null,null,"Masa odpadów poddanych"]
[]
[null,null,"odzyskowi według rodzaju materiału w tonach [Mg]:",null,null,null,"odzyskowi w tym pochodzących z gosodarstw domowych w tonach [Mg]:"]
[]
[null,null,{"$f":"IF(OR(FORMULARZ!$M$65=0,FORMULARZ!$M$65=\"\"),0,FORMULARZ!$M$65)","v":0},null,null,null,0]
[]
[null,null,"recyklingowi według rodzaju materiału w tonach [Mg]:",null,null,null,"recyklingowi w tym pochodzących z gosodarstw domowych w tonach [Mg]:"]
[]
[null,null,{"$f":"IF(OR(FORMULARZ!$O$65=0,FORMULARZ!$O$65=\"\"),0,FORMULARZ!$O$65)","v":0},null,null,null,0]
[]
[null,null,"Wymagany poziom"]
[]
[null,null,"odzysku według rodzaju materiału w tonach [Mg]:",null,null,null,"recyklingu według rodzaju materiału w tonach [Mg]:"]
[]
[null,null,53,null,null,null,34]
[]
[null,null,"Osiągnięty poziom"]
[]
[null,null,"odzysku według rodzaju materiału w tonach [Mg]:",null,null,null,"recyklingu według rodzaju materiału w tonach [Mg]:"]
[]
[null,null,{"$f":"IF(OR(WYNIK1!$Z$29=0,WYNIK1!$Z$29=\"\"),0,WYNIK1!$Z$29)","v":0},null,null,null,{"$f":"IF(OR(WYNIK1!$AB$29=0,WYNIK1!$AB$29=\"\"),0,WYNIK1!$AB$29)","v":0}]
[]
[null,null,"5. SZKŁO",null,null,null,null,null,null,null,null,null,null,{"$f":"IF(K691=0,\"NIE\",\"TAK\")","v":"NIE"}]
[]
[null,null,"Masa wprowadzonych do obrotu opakowań podlegających obowiązkowi odzysku i recyklingu"]
[]
[null,null,"w danym roku kalendarzowym w tonach [Mg]:",null,null,null,"w roku poprzedzającym dany rok kalendarzowy w tonach [Mg]:",null,null,null,"stanowiąca podstawę do obliczenia osiągniętego poziomu w tonach [Mg]:"]
[]
[null,null,{"$f":"IF(OR(WYNIK1!$O$30=0,WYNIK1!$O$30=\"\"),0,WYNIK1!$O$30)","v":0},null,null,null,{"$f":"IF(OR(WYNIK1!$K$30=0,WYNIK1!$K$30=\"\"),0,WYNIK1!$K$30)","v":0},null,null,null,{"$f":"IF(OR(WYNIK1!$R$30=0,WYNIK1!$R$30=\"\"),0,WYNIK1!$R$30)","v":0}]
[]
[null,null,"Masa odpadów poddanych"]
[]
[null,null,"odzyskowi według rodzaju materiału w tonach [Mg]:",null,null,null,"odzyskowi w tym pochodzących z gosodarstw domowych w tonach [Mg]:"]
[]
[null,null,{"$f":"IF(OR(FORMULARZ!$M$66=0,FORMULARZ!$M$66=\"\"),0,FORMULARZ!$M$66)","v":0},null,null,null,0]
[]
[null,null,"recyklingowi według rodzaju materiału w tonach [Mg]:",null,null,null,"recyklingowi w tym pochodzących z gosodarstw domowych w tonach [Mg]:"]
[]
[null,null,{"$f":"IF(OR(FORMULARZ!$O$66=0,FORMULARZ!$O$66=\"\"),0,FORMULARZ!$O$66)","v":0},null,null,null,0]
[]
[null,null,"Wymagany poziom"]
[]
[null,null,"odzysku według rodzaju materiału w tonach [Mg]:",null,null,null,"recyklingu według rodzaju materiału w tonach [Mg]:"]
[]
[null,null,53,null,null,null,34]
[]
[null,null,"Osiągnięty poziom"]
[]
[null,null,"odzysku według rodzaju materiału w tonach [Mg]:",null,null,null,"recyklingu według rodzaju materiału w tonach [Mg]:"]
[]
[null,null,{"$f":"IF(OR(WYNIK1!$Z$30=0,WYNIK1!$Z$30=\"\"),0,WYNIK1!$Z$30)","v":0},null,null,null,{"$f":"IF(OR(WYNIK1!$AB$30=0,WYNIK1!$AB$30=\"\"),0,WYNIK1!$AB$30)","v":0}]
[]
[null,null,"6. DREWNO",null,null,null,null,null,null,null,null,null,null,{"$f":"IF(K721=0,\"NIE\",\"TAK\")","v":"NIE"}]
[]
[null,null,"Masa wprowadzonych do obrotu opakowań podlegających obowiązkowi odzysku i recyklingu"]
[]
[null,null,"w danym roku kalendarzowym w tonach [Mg]:",null,null,null,"w roku poprzedzającym dany rok kalendarzowy w tonach [Mg]:",null,null,null,"stanowiąca podstawę do obliczenia osiągniętego poziomu w tonach [Mg]:"]
[]
[null,null,{"$f":"IF(OR(WYNIK1!$O$31=0,WYNIK1!$O$31=\"\"),0,WYNIK1!$O$31)","v":0},null,null,null,{"$f":"IF(OR(WYNIK1!$K$31=0,WYNIK1!$K$31=\"\"),0,WYNIK1!$K$31)","v":0},null,null,null,{"$f":"IF(OR(WYNIK1!$R$31=0,WYNIK1!$R$31=\"\"),0,WYNIK1!$R$31)","v":0}]
[]
[null,null,"Masa odpadów poddanych"]
[]
[null,null,"odzyskowi według rodzaju materiału w tonach [Mg]:",null,null,null,"odzyskowi w tym pochodzących z gosodarstw domowych w tonach [Mg]:"]
[]
[null,null,{"$f":"IF(OR(FORMULARZ!$M$67=0,FORMULARZ!$M$67=\"\"),0,FORMULARZ!$M$67)","v":0},null,null,null,0]
[]
[null,null,"recyklingowi według rodzaju materiału w tonach [Mg]:",null,null,null,"recyklingowi w tym pochodzących z gosodarstw domowych w tonach [Mg]:"]
[]
[null,null,{"$f":"IF(OR(FORMULARZ!$O$67=0,FORMULARZ!$O$67=\"\"),0,FORMULARZ!$O$67)","v":0},null,null,null,0]
[]
[null,null,"Wymagany poziom"]
[]
[null,null,"odzysku według rodzaju materiału w tonach [Mg]:",null,null,null,"recyklingu według rodzaju materiału w tonach [Mg]:"]
[]
[null,null,53,null,null,null,34]
[]
[null,null,"Osiągnięty poziom"]
[]
[null,null,"odzysku według rodzaju materiału w tonach [Mg]:",null,null,null,"recyklingu według rodzaju materiału w tonach [Mg]:"]
[]
[null,null,{"$f":"IF(OR(WYNIK1!$Z$31=0,WYNIK1!$Z$31=\"\"),0,WYNIK1!$Z$31)","v":0},null,null,null,{"$f":"IF(OR(WYNIK1!$AB$31=0,WYNIK1!$AB$31=\"\"),0,WYNIK1!$AB$31)","v":0}]
[]
[null,null,"7. WIELOMATERIAŁOWE",null,null,null,null,null,null,null,null,null,null,{"$f":"IF(K751=0,\"NIE\",\"TAK\")","v":"NIE"}]
[]
[null,null,"Masa wprowadzonych do obrotu opakowań podlegających obowiązkowi odzysku i recyklingu"]
[]
[null,null,"w danym roku kalendarzowym w tonach [Mg]:",null,null,null,"w roku poprzedzającym dany rok kalendarzowy w tonach [Mg]:",null,null,null,"stanowiąca podstawę do obliczenia osiągniętego poziomu w tonach [Mg]:"]
[]
[null,null,{"$f":"IF(OR(WYNIK1!$O$32=0,WYNIK1!$O$32=\"\"),0,WYNIK1!$O$32)","v":0},null,null,null,{"$f":"IF(OR(WYNIK1!$K$32=0,WYNIK1!$K$32=\"\"),0,WYNIK1!$K$32)","v":0},null,null,null,{"$f":"IF(OR(WYNIK1!$R$32=0,WYNIK1!$R$32=\"\"),0,WYNIK1!$R$32)","v":0}]
[]
[null,null,"Masa odpadów poddanych"]
[]
[null,null,"odzyskowi według rodzaju materiału w tonach [Mg]:",null,null,null,"odzyskowi w tym pochodzących z gosodarstw domowych w tonach [Mg]:"]
[]
[null,null,{"$f":"IF(OR(FORMULARZ!$M$68=0,FORMULARZ!$M$68=\"\"),0,FORMULARZ!$M$68)","v":0},null,null,null,0]
[]
[null,null,"recyklingowi według rodzaju materiału w tonach [Mg]:",null,null,null,"recyklingowi w tym pochodzących z gosodarstw domowych w tonach [Mg]:"]
[]
[null,null,{"$f":"IF(OR(FORMULARZ!$O$68=0,FORMULARZ!$O$68=\"\"),0,FORMULARZ!$O$68)","v":0},null,null,null,0]
[]
[null,null,"Wymagany poziom"]
[]
[null,null,"odzysku według rodzaju materiału w tonach [Mg]:",null,null,null,"recyklingu według rodzaju materiału w tonach [Mg]:"]
[]
[null,null,53,null,null,null,34]
[]
[null,null,"Osiągnięty poziom"]
[]
[null,null,"odzysku według rodzaju materiału w tonach [Mg]:",null,null,null,"recyklingu według rodzaju materiału w tonach [Mg]:"]
[]
[null,null,{"$f":"IF(OR(WYNIK1!$Z$32=0,WYNIK1!$Z$32=\"\"),0,WYNIK1!$Z$32)","v":0},null,null,null,{"$f":"IF(OR(WYNIK1!$AB$32=0,WYNIK1!$AB$32=\"\"),0,WYNIK1!$AB$32)","v":0}]
[]
[null,null,"8. POZOSTAŁE",null,null,null,null,null,null,null,null,null,null,{"$f":"IF(K781=0,\"NIE\",\"TAK\")","v":"NIE"}]
[]
[null,null,"Masa wprowadzonych do obrotu opakowań podlegających obowiązkowi odzysku i recyklingu"]
[]
[null,null,"w danym roku kalendarzowym w tonach [Mg]:",null,null,null,"w roku poprzedzającym dany rok kalendarzowy w tonach [Mg]:",null,null,null,"stanowiąca podstawę do obliczenia osiągniętego poziomu w tonach [Mg]:"]
[]
[null,null,{"$f":"IF(OR(WYNIK1!$O$33=0,WYNIK1!$O$33=\"\"),0,WYNIK1!$O$33)","v":0},null,null,null,{"$f":"IF(OR(WYNIK1!$K$33=0,WYNIK1!$K$33=\"\"),0,WYNIK1!$K$33)","v":0},null,null,null,{"$f":"IF(OR(WYNIK1!$R$33=0,WYNIK1!$R$33=\"\"),0,WYNIK1!$R$33)","v":0}]
[]
[null,null,"Masa odpadów poddanych"]
[]
[null,null,"odzyskowi według rodzaju materiału w tonach [Mg]:",null,null,null,"odzyskowi w tym pochodzących z gosodarstw domowych w tonach [Mg]:"]
[]
[null,null,{"$f":"IF(OR(FORMULARZ!$M$69=0,FORMULARZ!$M$69=\"\"),0,FORMULARZ!$M$69)","v":0},null,null,null,0]
[]
[null,null,"recyklingowi według rodzaju materiału w tonach [Mg]:",null,null,null,"recyklingowi w tym pochodzących z gosodarstw domowych w tonach [Mg]:"]
[]
[null,null,{"$f":"IF(OR(FORMULARZ!$O$69=0,FORMULARZ!$O$69=\"\"),0,FORMULARZ!$O$69)","v":0},null,null,null,0]
[]
[null,null,"Wymagany poziom"]
[]
[null,null,"odzysku według rodzaju materiału w tonach [Mg]:",null,null,null,"recyklingu według rodzaju materiału w tonach [Mg]:"]
[]
[null,null,53,null,null,null,34]
[]
[null,null,"Osiągnięty poziom"]
[]
[null,null,"odzysku według rodzaju materiału w tonach [Mg]:",null,null,null,"recyklingu według rodzaju materiału w tonach [Mg]:"]
[]
[null,null,{"$f":"IF(OR(WYNIK1!$Z$33=0,WYNIK1!$Z$3=\"\"),0,WYNIK1!$Z$3)","v":0},null,null,null,{"$f":"IF(OR(WYNIK1!$AB$33=0,WYNIK1!$AB$33),0,WYNIK1!$AB$33)","v":0}]
[]
[]
[null,null,"Dział II  Tabela 7. Informacja o wysokości należnej opłaty produktowej"]
[]
[]
[null,null,"A. WYSOKOŚC NALEŻNEJ OPŁATY PRODUKTOWEJ:"]
[]
[null,null,"odzysk [zł]",null,null,"recykling ogółem [zł]"]
[]
[null,null,{"$f":"IF(OR(WYNIK1!$AJ$39=0,WYNIK1!$AJ$39=\"\"),0,WYNIK1!$AJ$39)","v":0},null,null,{"$f":"IF(OR(WYNIK1!$AJ$40=0,WYNIK1!$AJ$40=\"\"),0,WYNIK1!$AJ$40)","v":0}]
[]
[null,null,"Rodzaj opakowania, z którego powstał odpad"]
[]
[null,null,"1. TWORZYWA SZTUCZNE",null,null,null,null,null,null,null,null,{"$f":"IF(OR(C824=0,C824=\"\"),\"NIE\",\"TAK\")","v":"NIE"}]
[]
[null,null,"Wysokość należnej opłaty produktowej"]
[]
[null,null,"recykling [zł]",null,null,null,"w tym pochodzących z gosodarstw domowych w tonach [zł]:"]
[]
[]
[null,null,{"$f":"IF(OR(WYNIK1!$AJ$41=0,WYNIK1!$AJ$41=\"\"),0,WYNIK1!$AJ$41)","v":0},null,null,null,0]
[]
[null,null,"2. ALUMINIUM",null,null,null,null,null,null,null,null,{"$f":"IF(OR(C833=0,C833=\"\"),\"NIE\",\"TAK\")","v":"NIE"}]
[]
[null,null,"Wysokość należnej opłaty produktowej"]
[]
[null,null,"recykling [zł]",null,null,null,"w tym pochodzących z gosodarstw domowych w tonach [zł]:"]
[]
[]
[null,null,{"$f":"IF(OR(WYNIK1!$AJ$42=0,WYNIK1!$AJ$42=\"\"),0,WYNIK1!$AJ$42)","v":0},null,null,null,0]
[]
[null,null,"3. METALE- STAL, W TYM BLACHA STALOWA, ORAZ POZOSTAŁE METALE",null,null,null,null,null,null,null,null,{"$f":"IF(OR(C842=0,C842=\"\"),\"NIE\",\"TAK\")","v":"NIE"}]
[]
[null,null,"Wysokość należnej opłaty produktowej"]
[]
[null,null,"recykling [zł]",null,null,null,"w tym pochodzących z gosodarstw domowych w tonach [zł]:"]
[]
[]
[null,null,{"$f":"IF(OR(WYNIK1!$AJ$43=0,WYNIK1!$AJ$43=\"\"),0,WYNIK1!$AJ$43)","v":0},null,null,null,0]
[]
[null,null,"4. PAPIER I TEKTURA",null,null,null,null,null,null,null,null,{"$f":"IF(OR(C851=0,C851=\"\"),\"NIE\",\"TAK\")","v":"NIE"}]
[]
[null,null,"Wysokość należnej opłaty produktowej"]
[]
[null,null,"recykling [zł]",null,null,null,"w tym pochodzących z gosodarstw domowych w tonach [zł]:"]
[]
[]
[null,null,{"$f":"IF(OR(WYNIK1!$AJ$44=0,WYNIK1!$AJ$44=\"\"),0,WYNIK1!$AJ$44)","v":0},null,null,null,0]
[]
[null,null,"5. SZKŁO",null,null,null,null,null,null,null,null,{"$f":"IF(OR(C860=0,C860=\"\"),\"NIE\",\"TAK\")","v":"NIE"}]
[]
[null,null,"Wysokość należnej opłaty produktowej"]
[]
[null,null,"recykling [zł]",null,null,null,"w tym pochodzących z gosodarstw domowych w tonach [zł]:"]
[]
[]
[null,null,{"$f":"IF(OR(WYNIK1!$AJ$45=0,WYNIK1!$AJ$45=\"\"),0,WYNIK1!$AJ$45)","v":0},null,null,null,0]
[]
[null,null,"6. DREWNO",null,null,null,null,null,null,null,null,{"$f":"IF(OR(C869=0,C869=\"\"),\"NIE\",\"TAK\")","v":"NIE"}]
[]
[null,null,"Wysokość należnej opłaty produktowej"]
[]
[null,null,"recykling [zł]",null,null,null,"w tym pochodzących z gosodarstw domowych w tonach [zł]:"]
[]
[]
[null,null,{"$f":"IF(OR(WYNIK1!$AJ$46=0,WYNIK1!$AJ$46=\"\"),0,WYNIK1!$AJ$46)","v":0},null,null,null,0]
[]
[null,null,"7. WIELOMATERIAŁOWE",null,null,null,null,null,null,null,null,{"$f":"IF(OR(C878=0,C878=\"\"),\"NIE\",\"TAK\")","v":"NIE"}]
[]
[null,null,"Wysokość należnej opłaty produktowej"]
[]
[null,null,"recykling [zł]",null,null,null,"w tym pochodzących z gosodarstw domowych w tonach [zł]:"]
[]
[]
[null,null,{"$f":"IF(OR(WYNIK1!$AJ$47=0,WYNIK1!$AJ$47=\"\"),0,WYNIK1!$AJ$47)","v":0},null,null,null,0]
[]
[null,null,"8. POZOSTAŁE",null,null,null,null,null,null,null,null,{"$f":"IF(OR(C887=0,C887=\"\"),\"NIE\",\"TAK\")","v":"NIE"}]
[]
[null,null,"Wysokość należnej opłaty produktowej"]
[]
[null,null,"recykling [zł]",null,null,null,"w tym pochodzących z gosodarstw domowych w tonach [zł]:"]
[]
[]
[null,null,{"$f":"IF(OR(SUM(WYNIK1!$AG$22,WYNIK1!$AG$32)=0,SUM(WYNIK1!$AG$22,WYNIK1!$AG$32)=\"\"),0,SUM(WYNIK1!$AG$22,WYNIK1!$AG$32))","v":0},null,null,null,0]
[]
[]
[]
[null,null,"B. Łączna opłata produktowa [zł]",null,null,null,{"$f":"IF(OR(WYNIK1!$AJ$48=0,WYNIK1!$AJ$48=\"\"),0,WYNIK1!$AJ$48)","v":0}]
[]
[]
[null,null,"Dział II  Tabela 8.1. Publiczne kampanie edukacyjne- Wprowadzający produkty w opakowaniach"]
[]
[]
[]
[null,null,"Minimalna wysokość środków, które należy przeznaczyć na publiczne kampanie edukacyjne [zł]"]
[]
[null,null,{"$f":"IF(OR(WYNIK1!$B$41=0,WYNIK1!$B$41=\"\"),0,WYNIK1!$B$41)","v":0}]
[]
[null,null,"Wysokość środków przeznaczonych na publiczne kampanie edukacyjne we własnym zakresie [zł]"]
[]
[null,null,{"$f":"IF(OR(WYNIK1!$E$41=0,WYNIK1!$E$41=\"\"),0,WYNIK1!$E$41)","v":0}]
[]
[null,null,"Wysokość środków przeznacznych na publiczne kampanie edukacyjne przekazanych na odrębny rachunek bankowy marszałka województwa"]
[]
[null,null,{"$f":"IF($C$904=0,$C$900,IF($C$904>$C$900,0,$C$904-$C$900))","v":0}]
[]
[null,null,"Sposób wykorzystania środków przeznaczonych na publiczne kampanie edukacyjne"]
[]
[null,null,{"$f":"IF($C$904>0,WYNIK1!$O$41,\"NIE DOTYCZY\")","v":"NIE DOTYCZY"}]